Cogmind - Beta 15 @@@ ROGUE MODE // 2025.06.30 @ 22:51:49 Player: Cog on my mind Result: Escaped! Performance ------------- Evolutions (9) 4500 Regions Visited (30) 6000 Robots Destroyed (658) 3290 Value Destroyed (33569) 33569 Prototype IDs (109) 2180 Alien Tech Used (2) 400 Bonus (28028) 28028 TOTAL SCORE: 77967 Bonus ------- Triggered High Security 500 High Alert Combat Kills 11893 Follower Combat Kills 6273 Entered Garrisons 200 Network Hubs Disabled 200 Registered with UFD 300 Met Optimus in HQ 500 Met Warlord at Base 500 MAIN.C Attacked Warlord 500 Warlord Defense Kills 172 Built Enhanced Grunts 300 A7 Reached Mainframe 300 Met R17 at Cetus 500 Hacked Protovariant 500 Met R17 at Research 2000 Scanned by Researcher 500 Win 3000 Friendly Fire -110 Cogmind --------- Core Integrity 1186/1600 Matter 300/300 Energy 597/600 System Corruption 46% Temperature Cool (0) Movement Rolling (140) Ox7 Location To Epsilon Eridani Parts ------- > --- POWER (2) -------- Reinforced Quantum Reactor Reinforced Quantum Reactor > --- PROPULSION (8) --- Armored Heavy Treads Armored Heavy Treads Overtuned Huge Scrapsphere Overtuned Huge Scrapsphere > --- UTILITY (10) ----- Advanced Heat Sink Advanced Heat Sink Advanced Heat Sink Advanced Heat Sink Advanced Cooling System Advanced Coolant Injector High-capacity Storage Unit Advanced Target Analyzer Experimental Core Analyzer Centrium Light Armor Plating > --- WEAPON (5) ------- Overtuned Quantum Rifle Overtuned Quantum Rifle Enhanced Quantum Rifle Helical Railgun Enhanced Gamma Bomb Array > --- INVENTORY (20) --- Quantum Reactor Light Quantum Reactor Advanced Cryofiber Web Experimental Heat Sink Experimental Energy Well (600) Experimental Matter Compressor (500) Long-range Sensor Array Precision Matter Filter Advanced Phase Shifter Experimental Thermal Defense Suite Advanced Force Field Null Cannon Enhanced Hardcell Cannon Point Singularity Launcher Peak State ------------ > --- POWER ------------ Quantum Reactor Quantum Reactor > --- PROPULSION ------- Biometal Medium Treads Advanced Heavy Siege Treads Experimental Biometal Medium Treads Heavy Shield Leg Overtuned Huge Scrapsphere > --- UTILITY ---------- Scrap Suit Advanced Cryofiber Web Experimental Heat Sink High-capacity Storage Unit Experimental Optical Array Advanced Targeting Computer Experimental Core Analyzer Experimental Weapon Cycler Advanced Phase Shifter > --- WEAPON ----------- Overtuned Quantum Rifle Enhanced Quantum Rifle Overtuned Railgun Multirail Multirail > --- INVENTORY -------- Quantum Reactor Overtuned Huge Scrapsphere Advanced Heat Sink Advanced Cooling System Advanced Coolant Injector Experimental Energy Well Experimental Matter Compressor Structural Scanner Long-range Sensor Array Precision Matter Filter Advanced Phase Shifter Experimental Thermal Defense Suite Advanced Force Field Subatomic Replicator Overtuned Quantum Rifle Null Cannon Enhanced Hardcell Cannon Enhanced Gamma Bomb Array Point Singularity Launcher [Rating: 214] Favorites ----------- Power Quantum Reactor Engine Improved Deuterium Engine Power Core Neutrino Core Reactor Quantum Reactor Propulsion Light Treads Treads Light Treads Leg Enhanced Biometal Leg Wheel Overtuned Huge Scrapsphere Hover Unit Combat Linear Gravjet Flight Unit Experimental Cesium-ion Thruster Utility Large Storage Unit Device Advanced Heat Sink Storage Large Storage Unit Processor Enhanced Optical Array Hackware Advanced Hacking Suite Protection Hardened Medium Armor Plating Weapon Shotgun Energy Gun Advanced Variable Charge Gun Energy Cannon Advanced Beam Cannon Ballistic Gun Shotgun Ballistic Cannon Magnetic Acceleration Cannon Launcher Mini Smartbomb Launcher Special Weapon Improved Plasma Cutter Slashing Weapon Power Sword Piercing Weapon Enhanced Force Lance Special Melee Weapon Dirty Datajack Build | -11 -10 -10 -9 -9 -9 -9 -9 -6 -6 -6 -6 -6 -5 -5 -5 -5 -5 -5 -4 -4 -4 -4 -4 -4 -3 -3 -2 -2 -2 -1 ------- Run | Yrd Mat Min Mat Sto Gar Rec Scr Fac Ext Cet Arc Hub Fac Was Fac Upp Upp War Pro Fac Was Fac Arm Lab Res Qua Res Tes Frg Acc Slots Evolved 18 | . . . 2 . . . . 6 . . . . 2 . . . . . . 2 . . . . 2 . 2 . . 2 Power 1 | . . . . . . . . . . . . . 1 . . . . . . . . . . . . . . . . . Propulsion 6 | . . . 1 . . . . 1 . . . . . . . . . . . 2 . . . . 1 . 1 . . . Utility 8 | . . . 1 . . . . 4 . . . . 1 . . . . . . . . . . . 1 . . . . 1 Weapon 3 | . . . . . . . . 1 . . . . . . . . . . . . . . . . . . 1 . . 1 Parts Attached 407 | 7 5 4 21 17 18 4 6 36 17 12 4 4 17 6 35 6 . 6 1 19 1 21 23 . 13 3 31 22 9 39 Power 59 | 1 . 2 2 1 2 1 1 3 4 1 1 . 4 1 5 1 . 1 . 3 . 3 8 . 1 . 4 3 2 4 Engine 21 | 1 . 2 2 1 2 1 1 3 2 1 . . . . 2 1 . . . 1 . . 1 . . . . . . . Core 14 | . . . . . . . . . 2 . 1 . 2 . 3 . . . . 1 . 2 3 . . . . . . . Reactor 24 | . . . . . . . . . . . . . 2 1 . . . 1 . 1 . 1 4 . 1 . 4 3 2 4 Propulsion 88 | 2 . . 11 3 6 3 3 11 1 2 . . . 1 10 . . 1 . 3 . 7 3 . 3 1 7 2 1 7 Treads 45 | 2 . . 11 3 6 3 2 5 . 1 . . . 1 . . . . . . . . . . . . 5 2 1 3 Leg 6 | . . . . . . . . 2 1 1 . . . . . . . . . . . . . . . . . . . 2 Wheel 10 | . . . . . . . 1 3 . . . . . . 2 . . . . . . . . . . . 2 . . 2 Hover 17 | . . . . . . . . . . . . . . . 4 . . . . . . 6 3 . 3 1 . . . . Flight 10 | . . . . . . . . 1 . . . . . . 4 . . 1 . 3 . 1 . . . . . . . . Utility 174 | 2 2 2 4 10 7 . 1 12 9 4 . 4 9 2 16 3 . 2 1 10 1 6 7 . 8 1 14 14 4 19 Device 100 | 1 . 1 1 3 4 . . 8 4 2 . 1 5 2 8 1 . 2 1 7 . 2 4 . 5 1 12 10 2 13 Storage 13 | 1 1 . . . . . . 1 1 1 . . 1 . 2 . . . . 1 . 1 . . 1 . 1 1 . . Processor 19 | . . . . . . . . 2 1 . . 1 1 . 3 1 . . . 1 1 1 1 . 2 . . 3 . 1 Hackware 11 | . . . . 1 . . . . 1 . . 1 1 . 3 . . . . 1 . 2 . . . . . . 1 . Protection 31 | . 1 1 3 6 3 . 1 1 2 1 . 1 1 . . 1 . . . . . . 2 . . . 1 . 1 5 Artifact . | . . . . . . . . . . . . . . . . . . . . . . . . . . . . . . . Weapon 86 | 2 3 . 4 3 3 . 1 10 3 5 3 . 4 2 4 2 . 2 . 3 . 5 5 . 1 1 6 3 2 9 Energy Gun 16 | . . . . 1 . . . 4 . 3 1 . . . . . . 1 . . . 1 . . . . . . 2 3 Energy Cannon 9 | . 1 . . . 1 . . . . 1 . . . . . . . . . . . 1 1 . . 1 . 3 . . Ballistic Gun 29 | 2 2 . 3 2 . . . 3 3 1 . . 3 1 . . . . . . . . . . . . 3 . . 6 Ballistic Cannon 4 | . . . . . . . 1 1 . . . . . . . . . . . . . . 1 . . . 1 . . . Launcher 12 | . . . 1 . 2 . . 2 . . . . . . 2 . . . . 1 . 1 . . 1 . 2 . . . Special Weapon 3 | . . . . . . . . . . . . . 1 . 1 . . 1 . . . . . . . . . . . . Impact Weapon . | . . . . . . . . . . . . . . . . . . . . . . . . . . . . . . . Slashing Weapon 5 | . . . . . . . . . . . 1 . . 1 . . . . . . . 2 1 . . . . . . . Piercing Weapon 5 | . . . . . . . . . . . . . . . 1 . . . . 2 . . 2 . . . . . . . Special Melee Weapon 3 | . . . . . . . . . . . 1 . . . . 2 . . . . . . . . . . . . . . Unidentified Prototypes 67 | . 1 1 . 1 . . . 8 . 7 . . 1 . 6 . . 3 . 4 . 4 4 . 3 1 6 10 2 5 Corrupted Parts 5 | . . . . . . . . . . . . . . . . . . . . . . . 1 . . . . . . 4 System Corruption 37 | . . . . . . . . . . . . . . . . . . . . . . . 4 . . . . . . 33 Parts Lost 106 | . . . . 2 6 . . 18 1 1 1 1 10 3 13 . . 1 1 3 . 5 4 . 1 3 4 1 4 23 Power 16 | . . . . . 1 . . 2 . 1 . . 2 1 4 . . . . 1 . . 1 . . . . . 1 2 Propulsion 15 | . . . . . 1 . . 5 . . . . 2 . 3 . . 1 . . . . . . . . . . . 3 Utility 42 | . . . . 2 3 . . 5 . . 1 1 4 2 3 . . . 1 1 . 2 2 . . 2 4 1 1 7 Weapon 33 | . . . . . 1 . . 6 1 . . . 2 . 3 . . . . 1 . 3 1 . 1 1 . . 2 11 Highest Loss Streak 10 | . . . . 1 5 . . 10 1 1 1 1 7 3 6 . . 1 1 3 . 2 1 . 1 2 3 1 2 4 To Critical Strikes 3 | . . . . . . . . . . 1 . . . . 1 . . . . . . 1 . . . . . . . . Average Backups 13 | . 10 14 14 14 14 15 14 13 18 19 19 20 18 12 6 5 5 4 5 6 10 9 9 9 13 13 13 14 18 16 Power . | . 1 1 1 1 . . . . . . 1 . . . . . . . . . . . . . . . . . 1 1 Propulsion 1 | . . . 1 2 3 4 3 2 3 2 2 2 2 1 1 1 1 . . . 1 . . 1 2 2 1 1 1 . Utility 7 | . 6 9 8 7 6 7 7 8 10 9 10 12 12 7 3 3 3 2 2 3 6 6 4 4 6 7 8 7 9 9 Weapon 3 | . 3 4 3 4 3 3 2 3 3 5 5 5 4 1 . . 1 2 2 3 3 2 3 4 3 2 2 3 4 5 Tool/Special . | . . . . . . . . . . . . . . . . . . . . . . . . . . . . . . . Unused Backups 68 | . . 1 8 10 1 . 5 3 6 5 . 2 2 2 4 . . 2 . . 2 3 . . 2 2 2 . . 6 Power 8 | . . . 1 2 . . . . 1 . . 1 . . 1 . . . . . . . . . . . . . . 2 Propulsion 7 | . . . 1 1 1 . . . . 1 . . . . . . . . . . 1 . . . 1 1 . . . . Utility 42 | . . 1 5 6 . . 4 3 4 2 . 1 1 1 3 . . 1 . . 1 3 . . . . 2 . . 4 Weapon 10 | . . . 1 1 . . . . 1 2 . . 1 1 . . . 1 . . . . . . 1 1 . . . . Tool/Special 1 | . . . . . . . 1 . . . . . . . . . . . . . . . . . . . . . . . Average Slot Usage (%) 90 | . 99 100 98 99 99 97 94 89 92 92 92 92 91 73 78 92 94 96 100 88 89 84 91 94 97 93 78 79 81 77 Engine 4 | . 14 14 11 11 11 11 10 5 3 2 4 . . . 1 4 5 4 5 1 . . . . . . . . . . Core 1 | . . . . . . . . . 2 3 1 6 8 5 4 . . . . 2 5 8 4 . . . . . . . Reactor 2 | . . . . . . . . . . . . . . 3 1 . . 1 5 6 5 1 5 10 9 9 8 8 8 7 Treads 17 | . 28 28 32 33 32 33 32 17 6 18 20 20 16 10 4 . . . . . . . . . . . 9 15 16 12 Wheel 1 | . . . . . . . . 4 . . . . . . . . . . . . . . . . . . 3 4 4 4 Hover 3 | . . . . . . . . . . . . . . . 6 . . . . . . 9 31 31 32 32 6 . . . Flight 2 | . . . . . . . . . . . . . . . 3 23 23 23 23 21 21 14 . . . . . . . . Device 12 | . 2 1 9 3 15 11 10 14 10 16 13 13 12 18 17 11 11 11 11 11 10 13 10 10 13 14 18 19 15 17 Storage 6 | . 14 14 11 11 11 11 10 6 6 6 6 6 5 4 3 . . . . 5 5 5 5 5 4 4 4 4 4 4 Processor 8 | . . . . . . . . 12 14 15 13 13 16 17 17 23 23 23 23 17 20 15 11 10 13 14 10 9 13 8 Hackware 1 | . . . . 6 . . . . . . . 5 7 . 3 6 5 5 5 5 5 5 5 5 4 4 . . . . Protection 5 | . 11 12 11 11 5 11 10 3 5 6 12 5 2 . . 3 5 4 5 . . . 3 5 4 3 . . 1 2 Energy Gun 2 | . . . . . . . . 3 13 19 18 20 6 . . . . . . . . . . . . . . . 4 5 Energy Cannon 2 | . . . . . 10 20 9 . . . . . . . . . . . . . . 3 1 . . . . . . . Ballistic Gun 8 | . 27 28 21 21 8 . . 7 5 . . . 9 9 . . . . . . . . . . . . 11 16 11 12 Ballistic Cannon 1 | . . . . . . . 9 5 . . . . . . . . . . . . . . 1 5 4 3 2 . . . Peak Build Rating 214 | 7 13 17 22 31 31 22 28 92 102 111 110 106 121 122 97 91 91 100 102 131 124 136 146 139 164 177 178 185 192 214 Average Rating 91 | 5 10 12 19 24 26 20 24 58 99 106 107 105 113 102 80 89 91 93 98 120 123 124 133 139 158 153 163 177 186 197 On Entrance 89 | . 7 12 13 22 31 22 15 27 83 101 108 110 101 76 79 86 91 91 98 102 124 123 122 139 139 156 144 171 184 189 Naked Turns . | . . . . . . . . . . . . . . . . . . . . . . . . . . . . . . . Heaviest Build 156 | 13 35 34 42 48 48 45 51 62 89 87 88 93 112 106 121 20 18 27 19 40 35 50 83 82 99 90 112 125 131 156 Greatest Support 235 | 40 40 40 63 63 60 60 63 83 90 150 150 150 150 160 160 20 20 20 20 40 40 70 84 84 118 118 220 220 235 235 Greatest Overweight (x) 12 | . . . 2 . . . 3 6 . 1 . . 1 1 12 . . 1 . . . 1 1 . 1 . 5 6 6 7 Average Overweight (x) . | . . . . . . . . 2 . . . . . . . . . . . . . . . . . . 3 4 4 2 Largest Inventory Capacity 25 | 8 15 15 15 15 15 15 15 15 20 20 20 20 20 20 25 5 5 5 5 10 10 10 10 10 15 15 15 20 20 20 Average Capacity 15 | 7 14 15 15 15 15 15 14 15 19 20 20 20 20 18 13 5 5 5 5 7 10 10 10 10 14 15 15 16 20 20 Most Carried 20 | 1 14 15 15 15 15 15 15 15 20 20 20 20 20 16 12 5 5 5 5 10 10 10 10 9 15 15 15 18 20 20 Average Carried 13 | . 10 14 14 14 14 14 14 14 18 19 19 19 18 12 6 4 5 4 5 6 9 9 9 9 13 14 14 15 19 17 Final Capacity 20 | 8 15 15 15 15 15 15 15 15 20 20 20 20 20 5 5 5 5 5 5 10 10 10 10 10 15 15 15 20 20 20 Final Carried 20 | 1 14 15 14 15 15 15 15 15 19 20 20 20 15 5 5 5 5 5 5 10 10 9 9 9 15 14 15 18 18 14 Class Distribution -------------------- 22% | Mutant 17% | Scavenger-Tank 12% | Commander-Mutant 8% | Scout 6% | Scavenger-Gunner 6% | Machinist-Scout 5% | Commander-Tank 4% | Scavenger-Mutant 3% | Scavenger-Skirmisher 3% | Commander-Gunner Dominant Class ---------------- Mutant | -10/Materials Mutant | -10/Mines Mutant | -9/Materials Mutant | -9/Storage Mutant | -9/Garrison Scavenger-Mutant | -9/Recycling Commander-Mutant | -9/Scraptown Scavenger-Tank | -6/Factory Commander-Gunner | -6/Extension Commander-Tank | -6/Cetus Commander-Tank | -6/Archives Commander-Tank | -6/Hub_04(d) Scavenger-Skirmisher | -5/Factory Scavenger-Tank | -5/Waste Scout | -5/Factory Scout | -5/Upper Caves Scout | -5/Upper Caves Commander-Scout | -5/Warlord Scout | -4/Proximity Caves Sprinter | -4/Factory Scout | -4/Waste Scout | -4/Factory Machinist-Scout | -4/Armory Commander-Scout | -4/Lab Machinist-Scout | -3/Research Machinist-Scout | -3/Quarantine Scavenger-Tank | -2/Research Scavenger-Tank | -2/Testing Scavenger-Tank | -2/Protoforge Scavenger-Gunner | -1/Access Resources | -11 -10 -10 -9 -9 -9 -9 -9 -6 -6 -6 -6 -6 -5 -5 -5 -5 -5 -5 -4 -4 -4 -4 -4 -4 -3 -3 -2 -2 -2 -1 ----------- Run | Yrd Mat Min Mat Sto Gar Rec Scr Fac Ext Cet Arc Hub Fac Was Fac Upp Upp War Pro Fac Was Fac Arm Lab Res Qua Res Tes Frg Acc Matter Collected 22607 | 363 683 109 1037 589 841 99 340 1989 417 193 80 130 725 . 992 182 9 122 . 390 125 647 849 . 601 264 1857 2318 845 5811 Remotely 188 | . . . . . . . . 188 . . . . . . . . . . . . . . . . . . . . . . Salvage Created 31057 | 179 810 255 1156 962 1026 516 . 1863 1056 174 155 309 1242 . 1290 161 72 60 . 706 . 1007 1146 . 1185 431 1743 1936 2478 9139 Parts 1430 | 6 51 17 82 59 76 24 . 71 53 3 10 18 47 . 70 5 . . . 24 . 38 50 . 54 27 84 114 132 315 Haulers Intercepted 19 | . 1 . 2 . . . . 2 . . . . . . 3 . . . . 3 . 1 . . 2 . 2 . . 3 Recyclers Shooed 25 | . 1 1 . . . . . 7 . . . . . . 2 . . . . . . 4 . . . . 4 1 . 5 Parts Field Recycled . | . . . . . . . . . . . . . . . . . . . . . . . . . . . . . . . Retrieved Matter . | . . . . . . . . . . . . . . . . . . . . . . . . . . . . . . . Parts Self-Destructed 19 | . . . . . . . . . . . . . . . . 19 . . . . . . . . . . . . . . Prevented . | . . . . . . . . . . . . . . . . . . . . . . . . . . . . . . . Kills | -11 -10 -10 -9 -9 -9 -9 -9 -6 -6 -6 -6 -6 -5 -5 -5 -5 -5 -5 -4 -4 -4 -4 -4 -4 -3 -3 -2 -2 -2 -1 ------- Run | Yrd Mat Min Mat Sto Gar Rec Scr Fac Ext Cet Arc Hub Fac Was Fac Upp Upp War Pro Fac Was Fac Arm Lab Res Qua Res Tes Frg Acc Combat Hostiles Destroyed 479 | . 19 5 31 18 27 6 . 29 15 2 1 5 20 . 18 3 . 1 . 1 . 14 22 . 22 8 22 21 25 144 Melee 25 | . . . . . . . . . . . . . . . 9 2 . . . 1 . 5 1 . 7 . . . . . Guns 264 | . 19 5 27 13 8 . . 7 14 2 . 5 17 . . . . 1 . . . . . . . . 8 21 25 92 Cannons 35 | . . . . . 4 6 . 6 . . . . . . . . . . . . . . 4 . 7 3 2 . . 3 AOE 141 | . . . 4 5 15 . . 15 . . . . 3 . 9 1 . . . . . 9 12 . 8 5 12 . . 43 Classes Destroyed 26 | 2 6 . 2 1 2 1 . 3 1 . . . 2 . 1 1 . . . . . . . . . . . 1 . 3 Worker 30 | . . . 3 2 . . . 6 . . . . 2 . 4 . . . . . . 2 . . 4 1 1 . . 5 Builder 31 | . 1 . . . . 1 . 6 . . . . 1 . 2 . . . . . . . . . . . 6 2 3 9 Tunneler 14 | 4 1 . . . . . . . . . . . . . 2 . . . . 1 . 1 . . 1 . 2 . . 2 Hauler 19 | . 1 . 2 . . . . 2 . . . . . . 3 . . . . 3 . 1 . . 2 . 2 . . 3 Recycler 22 | 1 1 1 . 1 . 3 . 6 . . . . . . 1 . . . . 2 . . . . . 1 3 . . 2 Carrier 3 | . . . . . . . . . . . . . . . . . . . . . . . . . . . . . . 3 Minesweeper 3 | . . . . . . . . . . . . . . . . 1 2 . . . . . . . . . . . . . Mechanic 10 | . . . . 1 . . . 1 . . . . . . 1 . . . . . . . . . . . . . . 7 Operator 12 | . 2 . 1 1 . . . . 2 . 2 . . . 1 . . . . . . 1 . . . 1 . . 1 . Drone 1 | . . . . . . . . . . . . . . . 1 . . . . . . . . . . . . . . . Watcher 27 | . 2 . 2 2 . . . 1 . 1 . 1 1 . 2 . . . . 2 . 5 . . 1 . . 1 3 3 Swarmer 74 | . 3 2 10 . 5 1 . . . . . 1 . . 2 . . . . . . 5 3 . 12 . 10 . . 20 Cutter 1 | . . . . . 1 . . . . . . . . . . . . . . . . . . . . . . . . . Saboteur 6 | . . . . . . . . . . . . . 1 . . . . . . . . . 1 . . . . . . 4 Grunt 191 | . 16 3 14 10 15 . . 11 4 . . 1 10 . 10 3 . . . . . 3 7 . 7 4 4 6 13 50 Brawler 18 | . . . . . . 2 . . . . . . 1 . . . . . . . . . 2 . . . . . 1 12 Duelist 13 | . . . . . . . . . . . . . 1 . . . . . . . . . 4 . . . . . . 8 Protector 8 | . . . . . . . . 2 . . . . . . . . . . . . . . 1 . . . . . . 5 Researcher 1 | . . . . . . . . . . . . . . . . . . . . . . . . . . . . 1 . . Sentry 51 | . . . 7 8 8 2 . 2 9 . 1 3 1 . . . . . . . . 2 2 . 1 . . . 1 4 Specialist 6 | . . . . . . . . 2 . . . . 1 . . . . . . . . . . . . . . 3 . . Hunter 30 | . . . . . . . . 6 1 . . . . . . . . . . . . . 1 . 2 . 5 5 . 10 Programmer 69 | . . . . . 4 1 . 7 . . . . 5 . 5 . . . . 1 . 4 1 . . 4 2 7 5 23 Behemoth 5 | . . . . . . . . . 1 . . . . . . . . 1 . . . . . . . . 1 . 1 1 Cetus Guard 2 | . . . . . . . . . . 2 . . . . . . . . . . . . . . . . . . . . Hotshot 4 | . . . . . . . . . . . . . . . . . . . . . . . . . . . . . 4 . Investigator 1 | . . . . . . . . . . . . . . . . . . . . . . . . . . . . . . 1 Striker 3 | . . . . . . . . . . . . . . . . . . . . . . . . . . . . . . 3 Executioner 4 | . . . . . . . . . . . . . . . . . . . . . . . . . . . . . . 4 Best Kill Streak 22 | 3 8 3 6 7 6 3 . 20 3 2 1 2 6 . 8 2 1 1 . 3 . 6 4 . 9 6 16 7 4 22 Combat Bots Only 16 | . 3 3 6 3 6 2 . 9 3 2 1 2 5 . 8 2 . 1 . 1 . 6 4 . 5 5 14 5 4 16 Max Kills in Single Turn 9 | 1 2 2 4 3 5 1 . 9 1 1 1 1 3 . 3 1 1 1 . 1 . 5 3 . 3 5 6 2 3 6 Gunslinging 1 | . . 1 . . . . . . . . . . . . . . . . . . . . . . . . . 1 1 1 Exploded 6 | . . . 4 2 3 . . 4 . . . . 3 . 3 1 . . . . . 5 3 . 2 5 6 . . 5 Melee 1 | . . . . . . . . . . . . . . . 1 1 . . . 1 . 1 1 . 1 . . . . . Uniques/NPCs Destroyed . | . . . . . . . . . . . . . . . . . . . . . . . . . . . . . . . Combat | -11 -10 -10 -9 -9 -9 -9 -9 -6 -6 -6 -6 -6 -5 -5 -5 -5 -5 -5 -4 -4 -4 -4 -4 -4 -3 -3 -2 -2 -2 -1 -------- Run | Yrd Mat Min Mat Sto Gar Rec Scr Fac Ext Cet Arc Hub Fac Was Fac Upp Upp War Pro Fac Was Fac Arm Lab Res Qua Res Tes Frg Acc Hostile Shots Fired 2668 | . 51 6 91 86 149 18 . 226 229 48 12 79 265 10 116 4 3 . 13 38 . 98 83 . 68 74 145 155 118 483 Missed 874 | . 17 2 25 31 38 5 . 67 93 18 6 34 77 2 36 2 2 . 6 18 . 46 37 . 24 26 40 43 31 148 Hits 1794 | . 34 4 66 55 111 13 . 159 136 30 6 45 188 8 80 2 1 . 7 20 . 52 46 . 44 48 105 112 87 335 Melee 18 | . . . . . 2 2 . . . . . . 1 8 . . . . . . . . 3 . . . . . . 2 Projectile 1776 | . 34 4 66 55 109 11 . 159 136 30 6 45 187 . 80 2 1 . 7 20 . 52 43 . 44 48 105 112 87 333 AOE 8 | . . . . . 2 . . . . . . . 2 . 3 . . . . . . . . . . . . . . 1 Critical Strikes 91 | . 1 . . 3 5 2 . 8 2 7 1 1 7 3 6 . . . 1 2 . 2 5 . 1 1 1 7 3 22 Actively Blocked 2 | . . . . . . . . . . . . . . . . . . . . . . . . . . . . . 2 . Part Disruptions 6 | . . . . . 1 . . . . . . . . . . . . 2 . . . . . . . 2 . 1 . . Damage Taken 33207 | . 376 37 677 766 1854 214 . 3245 1325 609 148 564 2921 368 1866 35 19 223 101 553 103 1043 999 . 875 1045 2124 2295 1328 7494 Core 3287 | . 42 8 60 29 182 34 . 347 87 89 . 66 282 91 404 . . 88 . 199 12 224 88 . 133 70 45 213 80 414 Absorbed by Shields 3818 | . . . 238 4 . 29 . 143 231 188 . . 522 34 5 . . . . . . . 44 . 292 . 358 720 700 310 Reduced by Siege Mode 583 | . . . . . . . . . . . . . 52 . . . . . . . . . . . . . 121 138 71 201 Redirected to Shielding 107 | . . . . . . . . . . . . . . . . . . . . . . . . . . . . . 107 . Ignored by Resistances 620 | . . . . . . . . 210 . . . 73 17 . . . . . . . . . . . . . 59 . 230 31 Regen/Repaired (Parts) 1876 | . . . . . . . . 14 . . . . 787 . . . . 38 . 117 63 235 . . . . 56 90 78 398 Core Remaining (%) 59 | 100 . 80 . . . . 23 . . . . 30 . . . . . . 13 . . . . 54 . 84 . . 76 74 Volleys Fired 1149 | 21 66 7 73 69 88 18 . 79 46 15 4 28 64 . 11 3 . 5 1 . . 8 61 . 35 21 52 70 70 234 Largest 5 | 2 2 2 2 2 2 2 . 3 3 3 3 3 3 . 2 1 . 1 1 . . 1 1 . 1 1 4 4 4 5 Hottest 568 | 40 46 46 46 68 136 136 . 154 358 358 240 568 248 . 86 43 . 60 60 . . 88 80 . 80 56 157 153 261 400 Shots Fired 2822 | 42 132 14 145 129 144 36 . 156 129 37 12 76 165 . 15 3 . 5 1 . . 9 58 . 36 19 142 244 250 823 Gun 2347 | 42 132 14 144 120 68 . . 76 129 37 12 76 164 . . . . 5 1 . . 2 2 . . . 102 244 245 732 Cannon 334 | . . . . 5 57 36 . 65 . . . . . . . . . . . . . 2 42 . 26 15 35 . 5 46 Launcher 140 | . . . 1 4 19 . . 15 . . . . . . 15 3 . . . . . 5 14 . 10 4 5 . . 45 Special 1 | . . . . . . . . . . . . . 1 . . . . . . . . . . . . . . . . . Kinetic 2021 | 42 132 14 144 120 68 . . 122 44 7 . . 122 . . . . . . . . . 13 . 26 15 137 244 189 582 Thermal 593 | . . . . 5 57 36 . 19 85 30 12 76 42 . . . . . . . . . . . . . . . 61 170 Explosive 125 | . . . 1 4 19 . . 15 . . . . . . 15 3 . . . . . 5 14 . 10 4 5 . . 30 Electromagnetic 60 | . . . . . . . . . . . . . . . . . . . . . . 2 29 . . . . . . 29 Entropic 22 | . . . . . . . . . . . . . . . . . . 5 1 . . 2 2 . . . . . . 12 Robot Hit Streak 41 | 6 9 8 9 15 27 7 . 17 12 14 7 11 19 . 4 . . 9 . . . 13 12 . 4 4 13 13 28 41 Robot Miss Streak 15 | 3 6 4 8 2 2 3 . 5 5 2 . 2 4 . 1 . . 2 . . . 2 4 . 2 2 4 5 5 15 Penetration Max 2 | . . . . . . . . . . . . . 1 . . . . . . . . . 1 . 2 1 2 1 2 2 Secondary Targets 48 | . 2 1 1 1 2 . . . 2 . . 1 3 . . . . . . . . . . . . . . 8 4 23 Max Gunslinging Chain 2 | . 1 1 1 1 1 . . . 1 . . 1 1 . . . . . . . . . . . . . . 1 1 2 Shots Hit Robots 1989 | 25 91 12 104 97 78 22 . 101 91 29 15 47 114 . 48 11 9 6 . 27 . 26 39 . 44 11 85 152 166 539 Core Hits 1422 | 6 44 10 69 41 53 11 . 126 36 12 3 15 44 . 60 10 1 5 . 9 . 40 40 . 37 21 58 70 88 513 Critical Kills 87 | . 1 . 1 . . . . . . 1 . . 3 . . . . . . . . . 4 . 8 3 6 13 17 30 Critical Parts Destroyed 103 | . 1 . . . . . . 1 . . . . 7 . . . . 1 . . . . 4 . 6 3 3 22 9 46 Critical Strikes 231 | . 2 . 1 . . . . 5 1 1 . . 10 . 2 . . 1 . 1 . . 10 . 19 6 10 35 34 93 Burn 18 | . . . . . . . . 2 1 . . . . . . . . . . . . . . . . . . . 6 9 Destroy 201 | . 2 . 1 . . . . 1 . 1 . . 10 . . . . . . . . . 9 . 16 6 9 35 28 83 Blast 2 | . . . . . . . . 2 . . . . . . . . . . . . . . . . . . . . . . Corrupt 1 | . . . . . . . . . . . . . . . . . . . . . . . . . . . . . . 1 Sever 2 | . . . . . . . . . . . . . . . 1 . . . . 1 . . . . . . . . . . Impale 6 | . . . . . . . . . . . . . . . 1 . . . . . . . 1 . 3 . 1 . . . Detonate 1 | . . . . . . . . . . . . . . . . . . 1 . . . . . . . . . . . . Melee Attacks 336 | . . . . . . . . . . . 9 . . 4 86 15 13 1 1 62 2 57 24 4 38 13 7 . . . Impact . | . . . . . . . . . . . . . . . . . . . . . . . . . . . . . . . Slashing 190 | . . . . . . . . . . . 7 . . 4 35 13 13 1 1 51 1 55 9 . . . . . . . Piercing 144 | . . . . . . . . . . . . . . . 51 2 . . . 11 1 2 15 4 38 13 7 . . . Sneak Attacks 52 | . . . . . . . . . . . 9 . . . 16 2 2 . . 6 . 8 . . 6 1 2 . . . Combat Hostiles 5 | . . . . . . . . . . . . . . . 1 1 . . . . . 3 . . . . . . . . Follow-up Attacks 4 | . . . . . . . . . . . . . . . 2 . . . . . . . 2 . . . . . . . Damage Inflicted 89842 | 327 1355 221 1927 1985 3181 590 . 6553 2512 895 727 1412 5344 . 4157 963 503 459 . 1425 . 3478 3174 . 3919 2026 4857 3340 3341 31171 Guns 43348 | 325 1344 217 1629 1516 931 . . 1356 2512 895 180 1412 4189 . . . . 293 . . . . . . . . 1741 3262 3341 18205 Cannons 5294 | . . . . . 546 589 . 1002 . . . . . . . . . . . . . . 831 . 394 192 758 . . 982 Explosions 31374 | . . . 295 458 1704 . . 4188 . . . . 1155 . 1709 298 . 108 . . . 1538 2092 . 2072 1665 2073 78 . 11941 Melee 9744 | . . . . . . . . . . . 547 . . . 2448 665 503 58 . 1425 . 1940 251 . 1453 169 285 . . . Ramming 82 | 2 11 4 3 11 . 1 . 7 . . . . . . . . . . . . . . . . . . . . . 43 Kinetic 34904 | 325 1344 217 1629 1516 931 . . 1977 543 142 . . 3220 . . . . . . . . . 243 . 394 192 2499 3262 2111 14359 Thermal 13443 | . . . 132 . 546 589 . 381 1969 753 180 1412 1387 . . . . 108 . . . 281 . . . . . . 1230 4475 Explosive 27563 | . . . 163 458 1704 . . 4188 . . . . 679 . 1568 298 . . . . . 957 2092 . 2072 1665 2073 78 . 9568 Electromagnetic 3143 | . . . . . . . . . . . . . 58 . 141 . . . . . . 300 588 . . . . . . 2056 Impact . | . . . . . . . . . . . . . . . . . . . . . . . . . . . . . . . Slashing 6117 | . . . . . . . . . . . 547 . . . 1062 500 503 58 . 1417 . 1940 90 . . . . . . . Piercing 3627 | . . . . . . . . . . . . . . . 1386 165 . . . 8 . . 161 . 1453 169 285 . . . Entropic 963 | . . . . . . . . . . . . . . . . . . 293 . . . . . . . . . . . 670 Highest Corruption 46 | . . . . . 7 7 . 6 6 . . 1 10 25 33 33 33 33 . 1 1 5 17 17 2 6 3 12 5 46 Average Corruption 10 | . . . . . 5 7 . 3 5 . . 1 3 19 28 33 33 33 . 1 1 4 10 17 2 2 3 6 4 14 Corruption Purged 19 | . . . . . . . . . 7 . . . . . . . . . . . . . . . . . . 12 . . Corruption Blocked 6 | . . . . . . . . . . . . . . . . . . . . . 6 . . . . . . . . . Effects 490 | . . . . . 38 29 . 22 21 . . . 22 7 95 17 10 3 . 1 . 25 41 2 6 9 2 22 3 115 Message Errors 115 | . . . . . 8 4 . 11 5 . . . 3 1 16 4 4 2 . 1 . 11 12 1 1 1 . 3 1 26 Matter Fused 105 | . . . . . 12 10 . 3 7 . . . 5 3 26 2 1 1 . . . 1 8 1 1 2 . 6 1 15 Heat Flow Errors 53 | . . . . . 3 6 . 1 2 . . . 3 2 9 5 . . . . . 2 5 . . 1 . 3 . 11 Energy Discharges 58 | . . . . . 5 4 . 2 2 . . . 3 . 8 1 2 . . . . 5 3 . . 3 1 2 . 17 Parts Rejected 12 | . . . . . . 1 . 1 . . . . . . 4 1 . . . . . 1 1 . 1 . . . . 2 Parts Fused 4 | . . . . . 1 . . . . . . . 1 . . 1 . . . . . . 1 . . . . . . . Data Loss (minor) 47 | . . . . . 5 2 . 3 1 . . . 5 . 9 . 2 . . . . 3 3 . 1 . . 1 . 12 Data Loss (major) 19 | . . . . . . . . . . . . . . . 3 1 1 . . . . . 3 . 1 . 1 2 . 7 Misfires 14 | . . . . . 2 1 . . 1 . . . 1 . . . . . . . . 1 . . 1 . . 1 1 5 Alerts 12 | . . . . . 1 . . . 1 . . . . . 8 . . . . . . 1 . . . . . . . 1 Misdirections 15 | . . . . . . . . . . . . . . 1 10 2 . . . . . . 2 . . . . . . . Weapon Failures 36 | . . . . . 1 1 . 1 2 . . . 1 . 2 . . . . . . . 3 . . 2 . 4 . 19 Overload Shots 9 | . . . . . . . . . 4 2 . 3 . . . . . . . . . . . . . . . . . . Overflow Damage 3346 | . . . 31 . . 3 . 106 . . 171 . 14 . 529 126 183 . . 71 . 409 52 . 576 173 196 . . 706 Projectiles 124 | . . . . . . 3 . 20 . . . . . . . . . . . . . . 3 . . . 27 . . 71 Explosions 1242 | . . . 31 . . . . 86 . . . . 14 . 32 . . . . . . 92 27 . 65 104 169 . . 622 Melee 1980 | . . . . . . . . . . . 171 . . . 497 126 183 . . 71 . 317 22 . 511 69 . . . 13 Knockbacks 21 | . . . . . . . . 9 . . . . . . . . . . . . . . . . 1 3 4 . . 4 Impact 1 | . . . . . . . . . . . . . . . . . . . . . . . . . . . . . . 1 Kinetic 19 | . . . . . . . . 8 . . . . . . . . . . . . . . . . 1 3 4 . . 3 Secondary 1 | . . . . . . . . 1 . . . . . . . . . . . . . . . . . . . . . . Self-Inflicted Damage 1387 | . . . 99 . 166 . . 673 . . . . 59 . 66 . . . . . . . . . 92 . . 115 . 117 Shots 41 | . . . 1 . 6 . . 24 . . . . 1 . 1 . . . . . . . . . 2 . . 1 . 5 Rammed 13 | 1 2 2 1 3 . 2 . 1 . . . . . . . . . . . . . . . . . . . . . 1 Targets Rammed 14 | 1 3 2 1 3 . 2 . 1 . . . . . . . . . . . . . . . . . . . . . 1 Kicked . | . . . . . . . . . . . . . . . . . . . . . . . . . . . . . . . Crushed 1 | . 1 . . . . . . . . . . . . . . . . . . . . . . . . . . . . . Highest Temperature 545 | . 51 6 15 60 327 255 . 207 370 272 75 402 395 145 256 272 . . . . 20 239 263 . 34 220 336 211 329 545 Average Temperature 82 | . 15 6 5 9 91 73 . 62 87 69 36 80 139 79 55 86 . . . . 8 25 46 . 7 122 87 118 62 150 Received Heat Transfer 4884 | . 213 6 217 366 360 30 . 702 333 43 18 105 812 . 171 9 . 9 . 57 . 75 63 . 131 109 119 90 242 604 Effects 14 | . . . . . 1 . . . 1 . . 1 3 . . 1 . . . . . . . . . . 1 . . 6 Shutdowns 7 | . . . . . . . . . . . . 1 . . . . . . . . . . . . . . 1 . . 5 Energy Bleed 4 | . . . . . 1 . . . 1 . . . 1 . . 1 . . . . . . . . . . . . . . Interference 2 | . . . . . . . . . . . . . 2 . . . . . . . . . . . . . . . . . Matter Decay 1 | . . . . . . . . . . . . . . . . . . . . . . . . . . . . . . 1 Siege Activations 21 | . . . . . . . . . . . . 1 2 . . . . . . . . . . . . . 3 2 4 9 Total Turns 692 | . . . . . . . . . . . . 3 61 . . . . . . . . . . . . . 37 42 83 466 Longest Duration 118 | . . . . . . . . . . . . 3 38 . . . . . . . . . . . . . 21 23 32 118 Martial Activations . | . . . . . . . . . . . . . . . . . . . . . . . . . . . . . . . Shielding Activations . | . . . . . . . . . . . . . . . . . . . . . . . . . . . . . . . Robots Disrupted 1 | . . . . . . . . . . . . . . . . . . . . . . . . . . . . . . 1 Combat Hostiles 1 | . . . . . . . . . . . . . . . . . . . . . . . . . . . . . . 1 Robots Corrupted 12 | . . . . . . . . . . . . . . . . . . . . . . . 5 . . . . . . 7 Combat Hostiles 11 | . . . . . . . . . . . . . . . . . . . . . . . 5 . . . . . . 6 Parts Fried 14 | . . . . . . . . . 1 . . . . . . . . . . . . 1 5 . . . . . . 7 Impact Corruptions 1 | . . . . . . . . . . . . . . . . . . . . . . . . . . . . . . 1 Robots Melted 3 | . . . . . . . . 1 1 . 1 . . . . . . . . . . . . . . . . . . . Combat Hostiles 3 | . . . . . . . . 1 1 . 1 . . . . . . . . . . . . . . . . . . . Parts Melted 41 | . . . . . 3 . . 1 9 1 5 2 4 . . . . . . . . . . . . . 1 . . 15 Heat Transferred 17661 | . . . 100 . 888 999 . 807 2542 864 222 1826 1310 . . . . 100 . . . 200 . . . . . . 1887 5916 Parts Sabotaged 4 | . . . . . . . . . . . . . 2 . . . . . . . . . . . . . . . . 2 Parts Stolen . | . . . . . . . . . . . . . . . . . . . . . . . . . . . . . . . Parts Stripped . | . . . . . . . . . . . . . . . . . . . . . . . . . . . . . . . Power Chain Reactions 7 | . . . . . . . . . . . . . 1 . . . . . . . . . 1 . . . . . . 5 Alert | -11 -10 -10 -9 -9 -9 -9 -9 -6 -6 -6 -6 -6 -5 -5 -5 -5 -5 -5 -4 -4 -4 -4 -4 -4 -3 -3 -2 -2 -2 -1 ------- Run | Yrd Mat Min Mat Sto Gar Rec Scr Fac Ext Cet Arc Hub Fac Was Fac Upp Upp War Pro Fac Was Fac Arm Lab Res Qua Res Tes Frg Acc Maximum Alert Level 5 | . 1 . 2 1 5 3 . 2 2 1 1 3 3 1 2 . . . . 1 . 2 4 . 2 2 4 3 2 5 Low Security (%) 28 | 100 75 100 36 29 3 . . 60 . 7 93 29 . 14 76 . . . . 86 100 7 . . 56 . . . . . Level 1 25 | . 24 . 41 70 6 . . 6 67 92 6 9 22 85 16 . . . . 13 . 84 7 . 38 60 14 1 36 8 Level 2 18 | . . . 22 . 19 . . 33 32 . . 16 59 . 6 . . . . . . 8 21 . 4 39 17 61 63 7 Level 3 12 | . . . . . 13 100 . . . . . 44 17 . . . . . . . . . 40 . . . 35 36 . 12 Level 4 8 | . . . . . 21 . . . . . . . . . . . . . . . . . 30 . . . 32 . . 38 Level 5 3 | . . . . . 34 . . . . . . . . . . . . . . . . . . . . . . . . 9 High Security 2 | . . . . . . . . . . . . . . . . . . . . . . . . . . . . . . 23 Max Security . | . . . . . . . . . . . . . . . . . . . . . . . . . . . . . . . Sterilizations 1 | . . . . . . . . . . . . . . . . . . . . . . . . . . . . . . 1 Peak Influence 3825 | 10 246 74 574 356 1861 945 . 534 552 320 213 1057 865 281 547 . . . . 218 125 655 1414 . 664 648 1290 793 635 3825 Initial 837 | . . 72 24 175 196 837 . . 225 187 78 9 479 281 122 . . . . 50 67 73 319 . . 364 358 610 438 252 Average 542 | 1 128 15 265 260 1157 864 . 204 362 245 124 513 488 237 116 . . . . 119 91 304 895 . 200 396 847 616 438 1517 Influence Increases 26078 | 25 604 144 1150 653 1965 424 . 1340 910 372 195 1673 1032 4 1204 254 10 326 105 446 78 1513 2309 . 1298 444 1490 832 739 4539 Destroy 0b10 Robot/C 12540 | . 380 100 700 360 900 200 . 800 420 160 80 560 400 . 340 160 . 220 . 20 . 380 1120 . 540 160 680 440 500 2920 Destroy 0b10 Robot/NC 970 | 25 40 5 40 35 . 20 . 125 20 10 10 15 20 . 85 5 10 15 . 40 . 55 15 . 40 15 90 15 35 185 Destroy Leader 2226 | . 86 20 208 124 40 . . 186 40 . . 166 72 . 50 20 . . . 10 . 112 206 . 86 20 128 62 106 484 Allied During Kill 2675 | . . 4 22 . 209 63 . 100 354 170 90 701 . . . 54 . 76 . . . 73 327 . 157 . 198 . . 77 Trap Triggered on 0b10 10 | . . . . . . . . . . . . . . . . . . . . 10 . . . . . . . . . . Successful Hack 724 | . 8 . 47 31 21 5 . . 38 . . 64 44 . 64 . . . . 13 . 152 52 . 24 26 55 12 44 24 Select Force Hacks 310 | . 60 . 30 . . 120 . . . . . 50 . . . . . . . . . . 50 . . . . . . . Disable Machine 1275 | . . . 30 75 15 15 . 15 15 15 15 90 195 . 195 . . . . 30 . 180 105 . 30 45 60 75 . 75 Anti-Garrison Action 600 | . . . . . 600 . . . . . . . . . . . . . . . . . . . . . . . . . Destroy Structure 3083 | . . . 28 28 165 1 . 84 8 17 . 27 286 4 230 . . . . 38 78 246 314 . 256 88 279 198 39 669 Partial Spotted 270 | . . . . . . . . . . . . . . . 60 . . . . 120 . 45 15 . 30 . . . . . Lose Combat Pursuer 1395 | . 30 15 45 . 15 . . 30 15 . . . 15 . 180 15 . 15 105 165 . 270 105 . 135 90 . 30 15 105 Influence Decreases 22253 | 25 418 268 796 767 406 1410 875 880 1035 512 361 723 1208 632 1006 399 124 244 221 332 167 966 1685 1276 650 454 1042 1138 1098 1135 Entered New Map 7835 | . . 114 38 241 106 1024 875 . 235 148 117 20 500 522 53 139 44 114 196 30 127 32 333 1276 . 284 280 476 342 169 Time Decay 8592 | 25 418 154 588 506 . 386 . 371 410 254 214 373 458 80 526 140 80 70 25 262 40 474 422 . 260 140 362 502 416 636 Lost Part 1037 | . . . . 20 60 . . 180 10 10 10 10 100 30 127 . . . . 30 . 50 40 . 10 30 40 10 40 230 Lost Ally 1939 | . . . 20 . 240 . . 179 80 100 20 320 . . . 120 . 60 . 10 . 260 290 . 80 . 60 . . 100 Purge Threat 2850 | . . . 150 . . . . 150 300 . . . 150 . 300 . . . . . . 150 600 . 300 . 300 150 300 . Squads Dispatched 150 | . 6 2 4 2 . . . 14 1 . . 12 5 . 10 . . . . 7 . 13 10 . 2 2 12 9 5 34 Investigation 40 | . 4 . 2 . . . . 6 1 . . 3 1 . 3 . . . . 3 . 7 3 . . . 3 3 . 1 Extermination 31 | . . . . . . . . 2 . . . 2 2 . 4 . . . . 2 . 3 3 . . 1 1 3 2 6 Reinforcement 36 | . 2 . 2 2 . . . 4 . . . 5 1 . 3 . . . . 2 . 3 2 . 2 . 2 2 2 2 Assault 35 | . . 2 . . . . . 1 . . . 2 1 . . . . . . . . . 2 . . 1 3 1 1 21 Garrison 8 | . . . . . . . . 1 . . . . . . . . . . . . . . . . . . 3 . . 4 Intercept . | . . . . . . . . . . . . . . . . . . . . . . . . . . . . . . . Searches Triggered . | . . . . . . . . . . . . . . . . . . . . . . . . . . . . . . . Construction Impeded 7 | . . . . . . . . 3 . . . . . . . . . . . . . 1 . . . . . 1 1 1 Haulers Reinforced 7 | . . . . . . . . . . . . . . . 1 . . . . 1 . 1 . . 1 . 2 . . 1 Active Scanning Responses . | . . . . . . . . . . . . . . . . . . . . . . . . . . . . . . . Cargo Convoy Interrupts 2 | . . . . . . . . 1 . . . . 1 . . . . . . . . . . . . . . . . . Stealth | -11 -10 -10 -9 -9 -9 -9 -9 -6 -6 -6 -6 -6 -5 -5 -5 -5 -5 -5 -4 -4 -4 -4 -4 -4 -3 -3 -2 -2 -2 -1 --------- Run | Yrd Mat Min Mat Sto Gar Rec Scr Fac Ext Cet Arc Hub Fac Was Fac Upp Upp War Pro Fac Was Fac Arm Lab Res Qua Res Tes Frg Acc Distress Signals 44 | . 1 . 1 1 . . . 1 . 2 . 1 2 . 5 . . . . 2 . 3 9 . 6 . 3 1 3 3 Communications Jammed . | . . . . . . . . . . . . . . . . . . . . . . . . . . . . . . . Distress Signals . | . . . . . . . . . . . . . . . . . . . . . . . . . . . . . . . Times Spotted 911 | . 30 8 52 26 50 8 . 47 26 11 10 31 38 6 45 11 2 28 9 16 6 51 55 . 37 24 41 34 35 174 Peak Tracking Total 13 | . 5 3 7 4 6 2 . 13 4 5 2 6 11 6 9 5 2 10 7 6 5 13 8 . 8 11 13 6 4 10 Tactical Retreats 55 | . 1 1 2 . 1 . . 1 1 . . . 1 . 10 1 . 1 2 5 . 7 5 . 3 3 . 2 1 7 Traps | -11 -10 -10 -9 -9 -9 -9 -9 -6 -6 -6 -6 -6 -5 -5 -5 -5 -5 -5 -4 -4 -4 -4 -4 -4 -3 -3 -2 -2 -2 -1 ------- Run | Yrd Mat Min Mat Sto Gar Rec Scr Fac Ext Cet Arc Hub Fac Was Fac Upp Upp War Pro Fac Was Fac Arm Lab Res Qua Res Tes Frg Acc Traps Triggered 31 | . 2 . 3 1 4 . . . 1 . . . 2 . 1 . . 2 . 1 . . 1 . . 1 2 4 5 1 Indirectly 1 | . . . . . . . . . . . . . . . . . . . . . . . . . . . . . . 1 Trap Hack Attempts . | . . . . . . . . . . . . . . . . . . . . . . . . . . . . . . . Triggered . | . . . . . . . . . . . . . . . . . . . . . . . . . . . . . . . Disarmed . | . . . . . . . . . . . . . . . . . . . . . . . . . . . . . . . Reprogrammed 6 | . . . . . . . . . . . . . . . . . . . . 6 . . . . . . . . . . Reused 1 | . . . . . . . . . . . . . . . . . . . . 1 . . . . . . . . . . Traps Extracted . | . . . . . . . . . . . . . . . . . . . . . . . . . . . . . . . Installed 3 | . . 3 . . . . . . . . . . . . . . . . . . . . . . . . . . . . Triggered 1 | . . . . . . . . . . . . . . . . . . . . 1 . . . . . . . . . . Objects Rigged 9 | . . . . 4 . . . . . . . . . . . . . . . . . 5 . . . . . . . . Exploded 2 | . . . . 1 . . . . . . . . . . . . . . . . . 1 . . . . . . . . Machines | -11 -10 -10 -9 -9 -9 -9 -9 -6 -6 -6 -6 -6 -5 -5 -5 -5 -5 -5 -4 -4 -4 -4 -4 -4 -3 -3 -2 -2 -2 -1 ---------- Run | Yrd Mat Min Mat Sto Gar Rec Scr Fac Ext Cet Arc Hub Fac Was Fac Upp Upp War Pro Fac Was Fac Arm Lab Res Qua Res Tes Frg Acc Machines Disabled 99 | . . . 2 5 13 1 . 1 1 2 1 6 13 . 13 . . 1 . 2 . 12 7 . 2 3 4 5 . 5 Max in Single Turn 6 | . . . 2 2 2 1 . 1 1 1 . 1 6 . 4 . . . . 1 . 4 1 . 1 1 1 1 . 1 Garrison Access 8 | . . . . . . . . 1 . . . 1 . . 1 . . . . 1 . 2 . . 1 . 1 . . . Garrison Relay 9 | . . . . . 9 . . . . . . . . . . . . . . . . . . . . . . . . . Phase Generator 1 | . . . . . 1 . . . . . . . . . . . . . . . . . . . . . . . . . Network Hub 1 | . . . . . . . . . . . . 1 . . . . . . . . . . . . . . . . . . Machines Repaired . | . . . . . . . . . . . . . . . . . . . . . . . . . . . . . . . Machines Dismantled . | . . . . . . . . . . . . . . . . . . . . . . . . . . . . . . . Machines Sabotaged 1 | . . . . . . . . . . . . 1 . . . . . . . . . . . . . . . . . . Overloaded Fab Kills 4 | . . . . . . . . . . . . . . . . . . . . . . . 4 . . . . . . . Hacking | -11 -10 -10 -9 -9 -9 -9 -9 -6 -6 -6 -6 -6 -5 -5 -5 -5 -5 -5 -4 -4 -4 -4 -4 -4 -3 -3 -2 -2 -2 -1 --------- Run | Yrd Mat Min Mat Sto Gar Rec Scr Fac Ext Cet Arc Hub Fac Was Fac Upp Upp War Pro Fac Was Fac Arm Lab Res Qua Res Tes Frg Acc Machines Accessed 178 | . 6 1 9 12 4 5 6 10 16 . . 8 5 . 13 5 1 2 . 9 . 22 11 . 5 5 7 7 7 2 Terminals 111 | . 4 . 8 11 4 1 . 3 16 . . 7 4 . 5 1 1 . . 4 . 10 6 . 3 4 4 7 7 1 Fabricators 9 | . . . . . . . . 1 . . . . . . 1 . . . . 1 . 3 3 . . . . . . . Repair Stations 6 | . . . . . . . . . . . . . 1 . 2 . . . . 1 . 1 . . . 1 . . . . Recycling Units 27 | . 2 . 1 . . 4 . 5 . . . . . . 3 . . . . 2 . 4 2 . 1 . 2 . . 1 Scanalyzers 3 | . . . . . . . . . . . . . . . 1 . . . . . . 2 . . . . . . . . Garrison Access 9 | . . . . 1 . . . 1 . . . 1 . . 1 . . . . 1 . 2 . . 1 . 1 . . . Total Hacks 549 | . 18 1 25 27 8 6 40 24 26 . . 13 22 . 49 11 5 5 . 32 . 103 38 . 13 12 21 18 27 5 Successful 293 | . 10 1 16 16 2 6 40 7 12 . . 9 9 . 22 11 5 5 . 14 . 56 16 . 7 5 8 4 10 2 Failed 253 | . 7 . 8 11 6 . . 17 14 . . 4 13 . 27 . . . . 18 . 46 22 . 6 7 13 14 17 3 Catastrophic 47 | . . . 2 2 . . . 4 6 . . 1 . . 5 . . . . 2 . 2 5 . 3 . 3 6 5 1 Database Lockouts 3 | . 1 . 1 . . . . . . . . . . . . . . . . . . 1 . . . . . . . . Manual 276 | . 14 . 17 11 . 4 . 19 12 1 . 10 14 . 26 . . . . 14 . 54 24 . 7 8 8 7 23 3 Terminals 358 | . 16 . 24 26 8 2 . 7 26 . . 12 18 . 20 1 5 . . 20 . 60 28 . 11 11 15 18 27 3 Fabricators 30 | . . . . . . . . 2 . . . . . . 5 . . . . 5 . 14 4 . . . . . . . Repair Stations 16 | . . . . . . . . . . . . . 4 . 2 . . . . 4 . 5 . . . 1 . . . . Recycling Units 48 | . 2 . 1 . . 4 . 13 . . . . . . 8 . . . . 2 . 5 6 . 1 . 4 . . 2 Scanalyzers 21 | . . . . . . . . . . . . . . . 10 . . . . . . 11 . . . . . . . . Garrison Access 20 | . . . . 1 . . . 2 . . . 1 . . 4 . . . . 1 . 8 . . 1 . 2 . . . Terminal Hacks 161 | . 4 1 13 10 2 2 40 2 9 . . 1 3 . 6 11 5 5 . 5 . 18 7 . 5 1 3 3 5 . Record 48 | . . . . . . . 35 . . . . . . . . 8 5 . . . . . . . . . . . . . Robot Analysis 10 | . 1 . 1 1 . . 5 . . . . . . . . . . . . . . 2 . . . . . . . . Prototype ID Bank 23 | . 1 . 7 2 . 1 . . . . . . . . 1 . . 4 . 2 . 4 . . 1 . . . . . Open Door 16 | . . 1 . 5 1 . . . 5 . . . . . . 3 . 1 . . . . . . . . . . . . Level Access Points 1 | . . . . . . . . . . . . . . . . . . . . . . . . . . 1 . . . . Branch Access Points 4 | . . . 1 . . . . . . . . . 1 . . . . . . . . 1 . . 1 . . . . . Emergency Access Points 2 | . . . . . 1 . . . . . . . . . . . . . . . . 1 . . . . . . . . Machine Index 1 | . . . . . . . . . . . . . . . . . . . . . . . . . . . 1 . . . Terminal Index 6 | . 1 . 1 1 . . . . . . . . . . . . . . . 1 . 1 . . 1 . . . . . Fabricator Index 1 | . . . . . . . . . . . . . . . . . . . . . . 1 . . . . . . . . Scanalyzer Index 1 | . . . . . . . . . . . . . . . . . . . . . . 1 . . . . . . . . Alert Level 7 | . . . . . . 1 . 1 1 . . . . . 1 . . . . . . . 2 . . . . . 1 . Unreport Threat 19 | . . . 1 . . . . 1 2 . . . 1 . 2 . . . . . . 1 4 . 2 . 2 1 2 . Reprogram Traps 1 | . . . . . . . . . . . . . . . . . . . . 1 . . . . . . . . . . Patrol Status 4 | . . . . . . . . . . . . . . . . . . . . . . 3 1 . . . . . . . Recall Investigation 1 | . . . . . . . . . 1 . . . . . . . . . . . . . . . . . . . . . Recall Reinforcements 1 | . . . . . . . . . . . . . . . . . . . . . . 1 . . . . . . . . Hauler Manifests 5 | . . . 1 1 . . . . . . . . . . 1 . . . . 1 . 1 . . . . . . . . Registered Prototypes 2 | . . . . . . . . . . . . . . . 1 . . . . . . 1 . . . . . . . . Zone Layout 6 | . 1 . 1 . . . . . . . . 1 1 . . . . . . . . . . . . . . . 2 . Protovariant Controls 2 | . . . . . . . . . . . . . . . . . . . . . . . . . . . . 2 . . Fabricator Hacks 11 | . . . . . . . . . . . . . . . 1 . . . . 1 . 7 2 . . . . . . . Network Status 3 | . . . . . . . . . . . . . . . 1 . . . . . . 1 1 . . . . . . . Load Schematic 4 | . . . . . . . . . . . . . . . . . . . . . . 4 . . . . . . . . Build 4 | . . . . . . . . . . . . . . . . . . . . 1 . 2 1 . . . . . . . Repair Station Hacks 8 | . . . . . . . . . . . . . 2 . . . . . . 2 . 4 . . . . . . . . Scan Component 4 | . . . . . . . . . . . . . 1 . . . . . . 1 . 2 . . . . . . . . Repair 4 | . . . . . . . . . . . . . 1 . . . . . . 1 . 2 . . . . . . . . Recycling Unit Hacks . | . . . . . . . . . . . . . . . . . . . . . . . . . . . . . . . Scanalyzer 12 | . . . . . . . . . . . . . . . 7 . . . . . . 5 . . . . . . . . Insert Component 4 | . . . . . . . . . . . . . . . 2 . . . . . . 2 . . . . . . . . Analyze 8 | . . . . . . . . . . . . . . . 5 . . . . . . 3 . . . . . . . . Garrison Access Hacks 9 | . . . . 1 . . . 1 . . . 1 . . 1 . . . . 1 . 2 . . 1 . 1 . . . Unlock Access 1 | . . . . 1 . . . . . . . . . . . . . . . . . . . . . . . . . . Seal Access 8 | . . . . . . . . 1 . . . 1 . . 1 . . . . 1 . 2 . . 1 . 1 . . . Unauthorized Hacks 91 | . 6 . 3 5 . 4 . 4 3 . . 7 4 . 6 . . . . 5 . 20 7 . 1 4 4 1 5 2 Terminals 61 | . 4 . 2 5 . . . . 3 . . 7 3 . 2 . . . . 3 . 13 4 . 1 4 3 1 5 1 Track 15 | . 2 . . 2 . . . . . . . 1 . . 1 . . . . . . 4 . . . 1 1 . 3 . Assimilate 2 | . . . . . . . . . . . . . . . . . . . . 1 . . 1 . . . . . . . Botnet 35 | . 2 . 2 2 . . . . 3 . . 3 2 . 1 . . . . 2 . 7 2 . 1 2 2 1 2 1 Detonate 2 | . . . . 1 . . . . . . . . . . . . . . . . . 1 . . . . . . . . Disrupt 2 | . . . . . . . . . . . . . . . . . . . . . . . 1 . . 1 . . . . Operators 3 | . . . . . . . . . . . . 1 1 . . . . . . . . 1 . . . . . . . . Sabotage 2 | . . . . . . . . . . . . 2 . . . . . . . . . . . . . . . . . . Fabricators 5 | . . . . . . . . . . . . . . . 1 . . . . . . 3 1 . . . . . . . Haulers 2 | . . . . . . . . . . . . . . . 1 . . . . . . 1 . . . . . . . . Overload 1 | . . . . . . . . . . . . . . . . . . . . . . . 1 . . . . . . . Recompile 2 | . . . . . . . . . . . . . . . . . . . . . . 2 . . . . . . . . Repair Stations 1 | . . . . . . . . . . . . . 1 . . . . . . . . . . . . . . . . . Patch 1 | . . . . . . . . . . . . . 1 . . . . . . . . . . . . . . . . . Recycling Units 24 | . 2 . 1 . . 4 . 4 . . . . . . 3 . . . . 2 . 4 2 . . . 1 . . 1 Tunnel 7 | . 2 . 1 . . 4 . . . . . . . . . . . . . . . . . . . . . . . . Fedlink 9 | . . . . . . . . 2 . . . . . . 2 . . . . 2 . 3 . . . . . . . . Scrapoids 6 | . . . . . . . . 2 . . . . . . 1 . . . . . . . 1 . . . 1 . . 1 Scraphulk 2 | . . . . . . . . . . . . . . . . . . . . . . 1 1 . . . . . . . Scanalyzers . | . . . . . . . . . . . . . . . . . . . . . . . . . . . . . . . Garrison Access . | . . . . . . . . . . . . . . . . . . . . . . . . . . . . . . . Data Cores Recovered 7 | . . . . . . . . . 4 . . . . . 1 . . . . . . . . . . 1 . . 1 . Used 6 | . . . . . . . . . 3 . . . . . 1 . . . . . . . . . . 1 . . 1 . Hacking Detections 120 | . 4 . 7 9 4 . . 7 10 1 . 5 5 . 9 . . . . 6 . 14 9 . 4 5 5 7 7 2 Full Trace Events 8 | . . . . . . . . 2 1 . . . . . . . . . . 1 . 1 . . . . 2 1 . . Feedback Events 2 | . . . . . . . . . . . . . . . . . . . . 1 . . . . . . . 1 . . Corruption 2 | . . . . . . . . . . . . . . . . . . . . 1 . . . . . . . 1 . . Feedback Blocked . | . . . . . . . . . . . . . . . . . . . . . . . . . . . . . . . Robot Schematics Acquired 1 | . . . . . . . . . . . . . . . . . . . . . . . . . . . . 1 . . Robots Built . | . . . . . . . . . . . . . . . . . . . . . . . . . . . . . . . Authchips . | . . . . . . . . . . . . . . . . . . . . . . . . . . . . . . . Time . | . . . . . . . . . . . . . . . . . . . . . . . . . . . . . . . Total Robot Build Rating . | . . . . . . . . . . . . . . . . . . . . . . . . . . . . . . . Part Schematics Acquired 14 | . . . . . . . . . . . . . . . 2 . . . . . . 2 . . . . . 10 . . Parts Built 8 | . . . . . . . . . . . . . . . . . . . . 2 . 4 2 . . . . . . . Authchips 2 | . . . . . . . . . . . . . . . . . . . . . . 2 . . . . . . . . Time 225 | . . . . . . . . . . . . . . . . . . . . 64 . 92 69 . . . . . . . Total Part Build Rating 70 | . . . . . . . . . . . . . . . . . . . . 16 . 36 18 . . . . . . . Parts Repaired 4 | . . . . . . . . . . . . . 1 . . . . . . 1 . 2 . . . . . . . . Time 299 | . . . . . . . . . . . . . 54 . . . . . . 47 . 198 . . . . . . . . Parts Recycled . | . . . . . . . . . . . . . . . . . . . . . . . . . . . . . . . Recycled Matter . | . . . . . . . . . . . . . . . . . . . . . . . . . . . . . . . Retrieved Matter . | . . . . . . . . . . . . . . . . . . . . . . . . . . . . . . . Retrieved Components . | . . . . . . . . . . . . . . . . . . . . . . . . . . . . . . . Parts Scanalyzed 4 | . . . . . . . . . . . . . . . 2 . . . . . . 2 . . . . . . . . Part Schematics Acquired 4 | . . . . . . . . . . . . . . . 2 . . . . . . 2 . . . . . . . . Parts Damaged . | . . . . . . . . . . . . . . . . . . . . . . . . . . . . . . . Bothacking | -11 -10 -10 -9 -9 -9 -9 -9 -6 -6 -6 -6 -6 -5 -5 -5 -5 -5 -5 -4 -4 -4 -4 -4 -4 -3 -3 -2 -2 -2 -1 ------------ Run | Yrd Mat Min Mat Sto Gar Rec Scr Fac Ext Cet Arc Hub Fac Was Fac Upp Upp War Pro Fac Was Fac Arm Lab Res Qua Res Tes Frg Acc Used RIF Installer . | . . . . . . . . . . . . . . . . . . . . . . . . . . . . . . . Robots Hacked 3 | . . . . . . . . . . . 2 . 1 . . . . . . . . . . . . . . . . . Non-combat 2 | . . . . . . . . . . . 1 . 1 . . . . . . . . . . . . . . . . . Combat 1 | . . . . . . . . . . . 1 . . . . . . . . . . . . . . . . . . . Robot Hacks Applied 3 | . . . . . . . . . . . 2 . 1 . . . . . . . . . . . . . . . . . parse_system 1 | . . . . . . . . . . . 1 . . . . . . . . . . . . . . . . . . . find_chute 1 | . . . . . . . . . . . . . 1 . . . . . . . . . . . . . . . . . check_alert 1 | . . . . . . . . . . . 1 . . . . . . . . . . . . . . . . . . . Relay Couplers Released 36 | . . . . . 36 . . . . . . . . . . . . . . . . . . . . . . . . . Machine Destruction 36 | . . . . . 36 . . . . . . . . . . . . . . . . . . . . . . . . . Fabnet Peak Effective % . | . . . . . . . . . . . . . . . . . . . . . . . . . . . . . . . Robots Rewired 59 | . . . . . 9 12 . . 15 . . . . . . . . 5 . . . . 18 . . . . . . . Allies Hacked 4 | . . . . . 3 . . . . . . . . . . . . . . . . . . . . . . . . 1 Hacks Repelled . | . . . . . . . . . . . . . . . . . . . . . . . . . . . . . . . Allies | -11 -10 -10 -9 -9 -9 -9 -9 -6 -6 -6 -6 -6 -5 -5 -5 -5 -5 -5 -4 -4 -4 -4 -4 -4 -3 -3 -2 -2 -2 -1 -------- Run | Yrd Mat Min Mat Sto Gar Rec Scr Fac Ext Cet Arc Hub Fac Was Fac Upp Upp War Pro Fac Was Fac Arm Lab Res Qua Res Tes Frg Acc Total Allies 139 | . . 1 . 10 9 12 . 10 23 5 . . . . 5 3 . 5 . 1 19 1 25 . . . 5 . . 5 Largest Group 23 | . . 1 1 10 10 14 14 12 19 23 18 16 . . 5 5 . 5 1 1 19 16 8 8 8 . 5 . . 5 Highest-Rated Group 1079 | . . 31 31 88 132 238 238 254 651 1079 886 709 . . 235 235 . 257 59 26 684 609 469 469 469 . 323 . . 323 Highest-Rated Ally 159 | . . 31 31 16 39 39 39 39 159 159 152 96 . . 47 47 . 64 59 26 50 123 123 123 123 . 67 . . 67 Initial Warlord ECA Mod 28 | . . . . . . 14 14 . . . . . . . . . . . . . . . . . . . . . . . Total Orders 12 | . . . . . 2 . 5 1 . . 4 . . . . . . . . . . . . . . . . . . . STAY 4 | . . . . . . . 2 . . . 2 . . . . . . . . . . . . . . . . . . . FOLLOW 5 | . . . . . . . 3 . . . 2 . . . . . . . . . . . . . . . . . . . EXPLORE 2 | . . . . . 2 . . . . . . . . . . . . . . . . . . . . . . . . . RETURN 1 | . . . . . . . . 1 . . . . . . . . . . . . . . . . . . . . . . Ally Attacks 1323 | . . 2 16 . 107 24 . 147 71 83 13 122 2 . . 70 . 67 . . 84 42 244 . 16 . 131 . . 82 Total Damage 30792 | . . 21 212 . 1217 281 . 1885 1469 1411 237 3395 . . . 1315 . 1916 . . 3220 2060 6303 . 438 . 3356 . . 2056 Kills 193 | . . . 4 . 18 4 . 16 8 8 3 25 . . . 12 . 13 . . 9 8 39 . 5 . 17 . . 4 Allies Corrupted 5 | . . . . . . . . . . . . 2 . . . . . 1 . . . . . . . . . . . 2 Allies Melted 2 | . . . . . . . . 1 . . . 1 . . . . . . . . . . . . . . . . . . Intel | -11 -10 -10 -9 -9 -9 -9 -9 -6 -6 -6 -6 -6 -5 -5 -5 -5 -5 -5 -4 -4 -4 -4 -4 -4 -3 -3 -2 -2 -2 -1 ------- Run | Yrd Mat Min Mat Sto Gar Rec Scr Fac Ext Cet Arc Hub Fac Was Fac Upp Upp War Pro Fac Was Fac Arm Lab Res Qua Res Tes Frg Acc Active Infowar (turns) 16677 | 10 247 61 . 67 . . . 1497 984 551 443 861 1151 164 1688 281 170 351 185 560 98 1213 1035 40 585 280 837 1355 1013 950 Optics 16275 | . . . . . . . . 1497 984 551 443 861 1151 164 1688 281 170 351 185 560 98 1213 1018 40 585 280 837 1355 1013 950 Sensors 5600 | . . . . . . . . . . . . . 914 . 1144 276 170 351 165 203 98 1192 . . . . 154 933 . . Terrain 4261 | . . . . . . . . . . . . . . . 2 . . . . 278 98 1210 1032 40 585 280 531 205 . . Structural 1566 | . . . . . . . . . . . . 74 . 138 1309 . . . . . . . . . . . . . . 45 Seismic 1070 | 10 247 61 . 67 . . . . . . . . . . 403 . . . . . . . 83 . . . 72 . . 127 Cloaking 251 | . . . . . . . . . . . . . . . . . . . . . . . . . 251 . . . . . Jamming 1 | . . . . . . . . . . . . . . . . . . . . . . . . . . . . 1 . . ECM 3 | . . . . . . . . . . . . . . . . . . 2 . 1 . . . . . . . . . . Robot Analysis Total 10 | . 1 . 1 1 . . 5 . . . . . . . . . . . . . . 2 . . . . . . . . Derelict Logs Recovered 7 | . . 1 . . . . . . . . . . . . . 3 2 . 1 . . . . . . . . . . . Drone Launches 27 | . . . . . 2 . . 23 . . . . 2 . . . . . . . . . . . . . . . . . Drone Recoveries 19 | . . . . . . . . 19 . . . . . . . . . . . . . . . . . . . . . . Exploration | -11 -10 -10 -9 -9 -9 -9 -9 -6 -6 -6 -6 -6 -5 -5 -5 -5 -5 -5 -4 -4 -4 -4 -4 -4 -3 -3 -2 -2 -2 -1 ------------- Run | Yrd Mat Min Mat Sto Gar Rec Scr Fac Ext Cet Arc Hub Fac Was Fac Upp Upp War Pro Fac Was Fac Arm Lab Res Qua Res Tes Frg Acc Turns Passed 28703 | 240 1237 873 1854 1375 1509 909 2427 1498 984 551 443 861 1151 164 1688 281 170 351 185 560 98 1213 1035 40 585 280 837 1355 1013 2936 Spaces Moved 21699 | 105 618 515 937 616 649 419 1570 636 545 222 209 452 505 89 2151 841 736 839 321 1154 199 1978 1072 26 710 462 585 825 473 1240 Core 158 | 3 . . . . . . 155 . . . . . . . . . . . . . . . . . . . . . . . Treads 7961 | 102 618 515 937 616 649 419 1325 54 1 191 209 452 505 89 357 . . . . . . . . . . . 8 20 106 788 Legs 616 | . . . . . . . . 41 544 31 . . . . . . . . . . . . . . . . . . . . Wheels 2677 | . . . . . . . 90 541 . . . . . . 3 . . . . . . . . . . . 419 805 367 452 Hover 3956 | . . . . . . . . . . . . . . . 983 . . . . . . 545 1072 26 710 462 158 . . . Flight 6331 | . . . . . . . . . . . . . . . 808 841 736 839 321 1154 199 1433 . . . . . . . . Fastest Speed 16 | 50 160 160 160 166 160 160 50 90 100 100 160 160 160 160 16 16 16 16 16 16 23 23 44 45 27 27 37 110 120 100 Average Speed 91 | 156 160 160 162 166 162 160 148 141 100 151 160 160 160 162 54 16 16 16 16 21 23 29 45 45 39 35 93 121 141 149 Slowest Speed 330 | 160 160 160 330 166 166 160 160 240 160 240 160 160 240 240 260 16 16 106 16 23 23 157 148 45 145 48 175 163 250 250 Overloaded Moves 87 | . . . . . . . . . . . . . . . . . . . . . . . . . 7 80 . . . . Propulsion Burnouts . | . . . . . . . . . . . . . . . . . . . . . . . . . . . . . . . Robots Hopped 12 | . . . . . . . . . . . . . . . . . . 3 2 3 . 4 . . . . . . . . Potential Cave-ins 10 | . . . . . . . . 8 . . . . . 2 . . . . . . . . . . . . . . . . Cave-ins Triggered . | . . . . . . . . . . . . . . . . . . . . . . . . . . . . . . . Exploration Rate (%) 62 | 6 94 97 96 94 95 85 93 20 80 73 86 66 14 73 54 87 83 91 54 28 88 54 79 6 24 52 29 78 18 27 Regions Visited 30 Branch Regions 17 Pre-discovered Areas 15 | . 2 . 1 . . 4 5 1 . . . . . . . 1 . . 1 . . . . . . . . . . . Known Exits Taken 14 | . . . 1 1 . . . 1 . . . 1 . . 1 1 1 1 1 . . 1 . 1 1 1 . . 1 . Unknown Exits Taken 11 | 1 1 1 . . . 1 1 . 1 1 1 . . . . . . . . . . . 1 . . . 1 1 . . Scrap Searched 20 | . . 1 . . . . 12 . . . . . . . . 2 3 . 2 . . . . . . . . . . . Spaces Dug 177 | . . . . . . . . 6 . . . 8 29 4 30 2 3 . 4 19 1 21 8 4 2 9 12 2 3 10 Terrain Destroyed 1517 | . . . 29 31 122 . . 99 7 3 . 14 165 4 123 41 3 7 4 19 1 76 95 4 123 43 81 104 18 301 Melee 105 | . . . . . . . . . . . . . . 4 30 2 3 . 1 19 1 21 8 4 2 9 1 . . . Projectile 343 | . . . . . 2 . . 19 7 3 . 14 80 . . . . 1 3 . . 3 . . . 1 45 61 13 91 AOE 1039 | . . . 29 31 120 . . 80 . . . . 85 . 93 39 . 6 . . . 52 87 . 121 33 35 42 . 186 Terrain Rammed . | . . . . . . . . . . . . . . . . . . . . . . . . . . . . . . . Walls Destroyed . | . . . . . . . . . . . . . . . . . . . . . . . . . . . . . . . Machines Disabled . | . . . . . . . . . . . . . . . . . . . . . . . . . . . . . . . Actions | -11 -10 -10 -9 -9 -9 -9 -9 -6 -6 -6 -6 -6 -5 -5 -5 -5 -5 -5 -4 -4 -4 -4 -4 -4 -3 -3 -2 -2 -2 -1 --------- Run | Yrd Mat Min Mat Sto Gar Rec Scr Fac Ext Cet Arc Hub Fac Was Fac Upp Upp War Pro Fac Was Fac Arm Lab Res Qua Res Tes Frg Acc Total 28186 | 134 733 551 1123 843 957 624 1676 1109 900 411 298 532 720 101 2524 958 767 1044 447 1389 248 2479 1516 45 903 530 791 1060 673 2100 Wait 3165 | . 23 12 44 86 16 47 49 311 134 129 63 34 105 . 169 80 19 167 124 131 44 379 155 16 72 14 49 94 102 497 Move 21649 | 104 617 514 936 616 648 418 1569 635 544 221 208 451 505 88 2150 840 735 833 317 1148 198 1969 1071 25 709 461 584 824 472 1239 Hop 10 | . . . . . . . . . . . . . . . . . . 2 1 3 . 4 . . . . . . . . Pick Up 228 | 1 11 2 11 16 7 1 24 16 14 7 2 2 9 2 17 2 . 3 . 8 2 11 6 . 12 3 7 10 4 18 Fast Attach 326 | 7 4 1 14 12 7 2 6 21 10 13 2 1 8 1 36 7 . 8 1 19 . 20 23 . 12 8 29 21 7 26 Attach 125 | . . . . 3 6 . 5 17 3 3 2 . 6 5 15 1 . 2 . 2 . 5 4 . 4 1 7 1 5 28 Detach 69 | . 4 1 . 2 . 2 1 5 3 5 1 . . . 9 . . 2 . 3 . . 1 . 3 . 12 . 3 12 Swap 165 | . 2 5 16 10 21 3 3 7 5 1 4 13 11 1 2 3 . 2 2 2 1 6 1 . 3 1 9 7 7 17 Drop 392 | . 3 4 28 26 11 6 19 17 17 17 3 3 12 . 26 7 . 10 . 19 2 24 21 . 15 8 33 33 2 26 Fire 1149 | 21 66 7 73 69 88 18 . 79 46 15 4 28 64 . 11 3 . 5 1 . . 8 61 . 35 21 52 70 70 234 Melee 312 | . . . . . . . . . . . 9 . . 4 77 15 13 1 1 54 1 53 22 4 38 13 7 . . . Ram 1 | . . . . . . . . 1 . . . . . . . . . . . . . . . . . . . . . . Kick . | . . . . . . . . . . . . . . . . . . . . . . . . . . . . . . . Crush 13 | 1 3 2 1 3 . 2 . . . . . . . . . . . . . . . . . . . . . . . 1 Escape Stasis 17 | . . . . . . . . . . . . . . . 12 . . . . . . . . . . . 2 . 1 2 Rewire 562 | . . . . . 153 125 . . 124 . . . . . . . . 9 . . . . 151 . . . . . . . Trap 3 | . . 3 . . . . . . . . . . . . . . . . . . . . . . . . . . . . Miscellaneous . | . . . . . . . . . . . . . . . . . . . . . . . . . . . . . . . Route ------- -11/Scrapyard -10/Materials (discovered 5 exits: *Mat x3 / *Min x2) -10/Mines (discovered 3 exits: *Mat x2 / [*Sub]) -9/Materials (discovered 6 exits: [*Mat x3] / *Min x2 / *Sto) -9/Storage (discovered 2 exits: [*Mat] / Gar) -9/Garrison (discovered 3 exits: *Rec x3) -9/Recycling (discovered 2 exits: [*Fac] / *Scr) -9/Scraptown (discovered 2 exits: *Fac x2) -6/Factory (discovered 3 exits: Fac / Low / *Ext) -6/Extension (discovered 2 exits: *Fac / *Cet) -6/Cetus (discovered 2 exits: *Fac / [*Arc]) -6/Archives (discovered 3 exits: *Fac / *Hub x2) -6/Hub_04(d) (discovered 4 exits: *Fac x4) -5/Factory (discovered 2 exits: Upp x2) -5/Waste -5/Factory (discovered 3 exits: *Fac x2 / *Upp) -5/Upper Caves -5/Upper Caves (discovered 2 exits: *Fac / *War) -5/Warlord -4/Proximity Caves -4/Factory (discovered 5 exits: *Res x3 / *Upp / Arm) -4/Waste -4/Factory (discovered 5 exits: Res x2 / *Upp x2 / *Arm) -4/Armory (discovered 3 exits: Res x2 / *Lab) -4/Lab -3/Research (discovered 3 exits: Res / *Qua x2) -3/Quarantine -2/Research (discovered 2 exits: *Tes x2) -2/Testing (discovered 3 exits: *Acc / [*Sec] / *Frg) -2/Protoforge -1/Access To Epsilon Eridani History --------- Turn | Location | Event 8 | -11/Scrapyard | Discovered new exit (range 16) 241 | -11/Scrapyard | Entered Materials 242 | -10/Materials | Met a group of wandering Federalists 309 | -10/Materials | Build established: Mutant 381 | -10/Materials | Lost 3 allies 478 | -10/Materials | Discovered new exit (range 6) 802 | -10/Materials | Discovered new exit (range 11) 1235 | -10/Materials | Discovered new exit (range 16) 1352 | -10/Materials | Discovered new exit (range 15) 1370 | -10/Materials | Central database locked down 1411 | -10/Materials | Discovered new exit (range 4) 1478 | -10/Materials | Entered Mines 1571 | -10/Mines | Found the Drone Emporium 1578 | -10/Mines | Found Prototype Device 1578 | -10/Mines | Identified Splice Drone Bay 1783 | -10/Mines | Found a hidden stash of uninstalled traps 2093 | -10/Mines | Learned 2 Materials zone layouts 2141 | -10/Mines | Discovered new exit (range 7) 2220 | -10/Mines | Discovered new exit (range 14) 2308 | -10/Mines | Met a Derelict testing a Signal Generator 2308 | -10/Mines | Discovered new exit (range 6) 2351 | -10/Mines | Entered Materials 2351 | -9/Materials | Accompanied by 1 ally 2351 | -9/Materials | Evolved 2 slots: Propulsion x1, Utility x1 2352 | -9/Materials | Identified exit to Storage 2613 | -9/Materials | Identified exit to Mines 2765 | -9/Materials | Discovered new exit (range 9) 2945 | -9/Materials | Central database locked down 3339 | -9/Materials | Discovered new exit (range 14) 3629 | -9/Materials | Discovered new exit (range 4) 4205 | -9/Materials | Entered Storage 4848 | -9/Storage | Discovered new exit (range 16) 5502 | -9/Storage | Assisted by bots powering up and referring to "LRC-V3" 5556 | -9/Storage | Identified exit to Garrison 5580 | -9/Storage | Entered Garrison 5580 | -9/Garrison | Accompanied by 10 allies 5626 | -9/Garrison | Triggered checkpoint 5636 | -9/Garrison | Discovered new exit (range 60) 5639 | -9/Garrison | Garrison Relay disabled 5644 | -9/Garrison | Triggered checkpoint 5668 | -9/Garrison | Triggered checkpoint 5794 | -9/Garrison | Triggered checkpoint 5804 | -9/Garrison | Triggered checkpoint 5808 | -9/Garrison | Build established: Commander-Mutant 5808 | -9/Garrison | Triggered checkpoint 5855 | -9/Garrison | Lost 9 allies 6045 | -9/Garrison | Discovered new exit (range 10) 6080 | -9/Garrison | Triggered checkpoint 6095 | -9/Garrison | Garrison Relay disabled 6104 | -9/Garrison | Triggered checkpoint 6152 | -9/Garrison | Lost 3 allies 6219 | -9/Garrison | Garrison Relay disabled 6242 | -9/Garrison | Garrison Relay disabled 6244 | -9/Garrison | Garrison Relay disabled 6257 | -9/Garrison | Garrison Relay disabled 6258 | -9/Garrison | Core integrity fell below 50% 6319 | -9/Garrison | Lost 5 parts (1p1n2u1w) 6334 | -9/Garrison | Garrison Relay disabled 6435 | -9/Garrison | Build established: Mutant 6483 | -9/Garrison | Phase Generator disabled 6571 | -9/Garrison | Garrison Relay disabled 6882 | -9/Garrison | Discovered new exit (range 7) 6956 | -9/Garrison | Triggered checkpoint 6982 | -9/Garrison | Garrison Relay disabled 7089 | -9/Garrison | Entered Recycling 7089 | -9/Recycling | Accompanied by 2 allies 7250 | -9/Recycling | Build established: Scavenger-Mutant 7415 | -9/Recycling | Scanned before Scraplab entrance 7590 | -9/Recycling | Discovered new exit (range 16) 7858 | -9/Recycling | Build established: Commander-Mutant 7938 | -9/Recycling | Entered Scraplab 7951 | -9/Recycling | Discovered new exit (range 2) 7998 | -9/Recycling | Entered Scraptown 7998 | -9/Scraptown | Accompanied by 14 allies 7998 | -9/Scraptown | System corruption cleaned by C-Scrubber 8396 | -9/Scraptown | Discovered new exit (range 3) 8520 | -9/Scraptown | Visited Spacefarers 8576 | -9/Scraptown | Visited Bundlers 8894 | -9/Scraptown | Visited CPS Storage 8918 | -9/Scraptown | Visited Cyclists 9004 | -9/Scraptown | Visited Supply Room 9034 | -9/Scraptown | Visited The Evicted 9074 | -9/Scraptown | Visited Artisan Demo Area 9145 | -9/Scraptown | Visited UFD Registry 9145 | -9/Scraptown | Registered with UFD as "Microrunner" 9196 | -9/Scraptown | Entered Cyclist Reading Room 9276 | -9/Scraptown | Visited Curators Association 9356 | -9/Scraptown | Visited Junk Repository 9570 | -9/Scraptown | Visited Scrap Suit Storage 9623 | -9/Scraptown | Visited Analyses Database 9657 | -9/Scraptown | Visited DA-N13 Charitable Foundation 9663 | -9/Scraptown | Found DCF Scrap (30 items) 9701 | -9/Scraptown | Visited Scrapoid Research Area 9767 | -9/Scraptown | Discovered new exit (range 3) 9892 | -9/Scraptown | Visited Junk Repository 9940 | -9/Scraptown | Visited Abandonware Association 9957 | -9/Scraptown | Learned abandonware demo "SHUTEYE.EXE" 9957 | -9/Scraptown | Learned abandonware demo "REVENGE.EXE" 9996 | -9/Scraptown | Visited Cartography Club 10030 | -9/Scraptown | Found Surveybot 17 Chip 10059 | -9/Scraptown | Learned location of Lower Caves (-6) 10059 | -9/Scraptown | Learned location of Warlord (-5) 10059 | -9/Scraptown | Learned 24 Factory zone layouts 10059 | -9/Scraptown | Learned 8 Access zone layouts 10059 | -9/Scraptown | Learned 4 Recycling zone layouts 10059 | -9/Scraptown | Learned 16 Upper Caves zone layouts 10059 | -9/Scraptown | Learned 8 Proximity Caves zone layouts 10059 | -9/Scraptown | Learned 16 Proximity Caves zone layouts 10059 | -9/Scraptown | Learned 24 Proximity Caves zone layouts 10059 | -9/Scraptown | Learned 4 Hub_04(d) zone layouts 10059 | -9/Scraptown | Learned location of 1 exit from Factory 10059 | -9/Scraptown | Learned location of 1 exit from Research 10059 | -9/Scraptown | Learned location of 1 exit from Lower Caves 10070 | -9/Scraptown | Found Deep Structural Scanner 10323 | -9/Scraptown | Met Optimus 10323 | -9/Scraptown | Accepted into 0bPrime 10425 | -9/Scraptown | Entered Factory 10425 | -6/Factory | Accompanied by 12 allies 10425 | -6/Factory | Evolved 6 slots: Propulsion x1, Utility x4, Weapon x1 10426 | -6/Factory | Identified exit to Extension 10427 | -6/Factory | Identified exit to Lower Caves 10427 | -6/Factory | Identified exit to Factory 10504 | -6/Factory | Loaded intel: 8 recycling unit locations 10579 | -6/Factory | Found Prototype Launcher 10579 | -6/Factory | Identified Scatter Rocket Array 10594 | -6/Factory | Spotted B-75 Beast 10628 | -6/Factory | Allies destroyed B-75 Beast 10658 | -6/Factory | Lost 5 allies 10915 | -6/Factory | Build established: Scavenger-Tank 10929 | -6/Factory | Garrison activated, responded to threat 11121 | -6/Factory | Scrapoids reinforcements arrived? 11180 | -6/Factory | Learned location of Protoforge (-2) 11275 | -6/Factory | Scrapoids reinforcements arrived? 11286 | -6/Factory | Found Scrap Suit 11308 | -6/Factory | Lost 4 allies 11347 | -6/Factory | Found Scrap Suit 11383 | -6/Factory | Lost 6 allies 11408 | -6/Factory | Cargo convoy interrupted 11447 | -6/Factory | Destroyed 9 combat bots 11449 | -6/Factory | Lost 10 parts (1p4n1u4w) 11482 | -6/Factory | Found Prototype Device 11531 | -6/Factory | Identified Exp. Shield Generator 11541 | -6/Factory | Found Exp. Shield Generator 11560 | -6/Factory | Lost 3 parts (1p1n1u) 11560 | -6/Factory | Lost 4 allies 11823 | -6/Factory | Build established: Gunner 11825 | -6/Factory | First assault squad dispatched 11923 | -6/Factory | Entered Extension 12044 | -6/Extension | Rescued a captive Derelict 12054 | -6/Extension | Rescued a captive Derelict 12055 | -6/Extension | Rescued a captive Derelict 12222 | -6/Extension | Rescued a captive Derelict 12223 | -6/Extension | Rescued a captive Derelict 12244 | -6/Extension | Rescued A7 12329 | -6/Extension | Spotted B-75 Beast 12347 | -6/Extension | Rescued a captive Derelict 12383 | -6/Extension | Allies destroyed B-75 Beast 12389 | -6/Extension | Build established: Commander-Gunner 12392 | -6/Extension | Spotted B-75 Beast 12397 | -6/Extension | Lost 3 allies 12411 | -6/Extension | Destroyed B-75 Beast 12489 | -6/Extension | Core integrity fell below 50% 12766 | -6/Extension | Rescued a captive Derelict 12767 | -6/Extension | Rescued a captive Derelict 12799 | -6/Extension | Discovered exit to Factory (range 10) 12800 | -6/Extension | Discovered new exit (range 6) 12907 | -6/Extension | Entered Cetus 12907 | -6/Cetus | Accompanied by 19 allies (A7) 12912 | -6/Cetus | Acquired a Cetus Manufacturing Module code from A7 12913 | -6/Cetus | Spotted Cetus Guard 12913 | -6/Cetus | Spotted Cetus Guard 12916 | -6/Cetus | Spotted Cetus Guard 12924 | -6/Cetus | Spotted Cetus Guard 12924 | -6/Cetus | Allies destroyed Cetus Guard 12929 | -6/Cetus | Allies destroyed Cetus Guard 12935 | -6/Cetus | Destroyed Cetus Guard 12941 | -6/Cetus | Destroyed Cetus Guard 13043 | -6/Cetus | Started Cetus Manufacturing Module 13058 | -6/Cetus | Escorted A7 to Cetus Mainframe 13068 | -6/Cetus | Manufactured an Enhanced Grunt 13093 | -6/Cetus | Manufactured an Enhanced Grunt 13118 | -6/Cetus | Manufactured an Enhanced Grunt 13143 | -6/Cetus | Manufactured an Enhanced Grunt 13168 | -6/Cetus | Manufactured an Enhanced Grunt 13191 | -6/Cetus | Discovered new exit (range 21) 13226 | -6/Cetus | Spotted Cetus Guard 13226 | -6/Cetus | Spotted Cetus Guard 13226 | -6/Cetus | Spotted Cetus Guard 13226 | -6/Cetus | Spotted Cetus Guard 13230 | -6/Cetus | Discovered exit to Factory (range 21) 13234 | -6/Cetus | Allies destroyed Cetus Guard 13246 | -6/Cetus | Allies destroyed Cetus Guard 13251 | -6/Cetus | Build established: Commander-Tank 13261 | -6/Cetus | Allies destroyed Cetus Guard 13267 | -6/Cetus | Allies destroyed Cetus Guard 13286 | -6/Cetus | Met Revision 17 13289 | -6/Cetus | Lost 5 allies 13346 | -6/Cetus | Found Prototype Device 13346 | -6/Cetus | Identified Exp. Thermal Shield 13458 | -6/Cetus | Entered Archives 13458 | -6/Archives | Accompanied by 18 allies (A7) 13463 | -6/Archives | Received a hacking code to weaken MAIN.C 13479 | -6/Archives | Discovered new exit (range 22) 13504 | -6/Archives | Discovered new exit (range 22) 13512 | -6/Archives | Discovered exit to Factory (range 18) 13901 | -6/Archives | Entered Hub_04(d) 13901 | -6/Hub_04(d) | Accompanied by 16 allies 14181 | -6/Hub_04(d) | Spotted B-75 Beast 14239 | -6/Hub_04(d) | Allies destroyed B-75 Beast 14249 | -6/Hub_04(d) | Discovered exit to Factory (range 13) 14290 | -6/Hub_04(d) | Lost 6 allies 14463 | -6/Hub_04(d) | Discovered exit to Factory (range 11) 14544 | -6/Hub_04(d) | Discovered exit to Factory (range 7) 14601 | -6/Hub_04(d) | First assault squad dispatched 14667 | -6/Hub_04(d) | Discovered exit to Factory (range 20) 14729 | -6/Hub_04(d) | Network Hub disabled 14747 | -6/Hub_04(d) | Lost 4 allies 14749 | -6/Hub_04(d) | Spotted Lightning 14756 | -6/Hub_04(d) | Spotted Lightning 14757 | -6/Hub_04(d) | Spotted Lightning 14762 | -6/Hub_04(d) | Entered Factory 14762 | -5/Factory | Evolved 2 slots: Power x1, Utility x1 14763 | -5/Factory | Identified exit to Upper Caves 15187 | -5/Factory | Build established: Scavenger-Skirmisher 15362 | -5/Factory | First assault squad dispatched 15571 | -5/Factory | Repaired Centrium Heavy Treads 15901 | -5/Factory | Cargo convoy interrupted 15908 | -5/Factory | System corruption reached 10% 15913 | -5/Factory | Sucked down chute 15913 | -5/Factory | Entered Waste 15928 | -5/Waste | EMP discharged 15943 | -5/Waste | Lost 7 parts (2n4u1w) 15953 | -5/Waste | Found Broken Adv. Powered Armor 15965 | -5/Waste | Spotted C-40 Crusher 15979 | -5/Waste | Build established: Scavenger-Tank 15992 | -5/Waste | Spotted C-40 Crusher 16003 | -5/Waste | Crushed by Compactor (0 parts destroyed, 1 dropped) 16006 | -5/Waste | Crushed by Compactor (0 parts destroyed, 1 dropped) 16006 | -5/Waste | Spotted C-40 Crusher 16009 | -5/Waste | Spotted C-40 Crusher 16011 | -5/Waste | Spotted C-40 Crusher 16021 | -5/Waste | Crushed by Compactor (1 part destroyed, 1 dropped) 16028 | -5/Waste | EMP discharged 16028 | -5/Waste | Crushed by Compactor (1 part destroyed) 16042 | -5/Waste | Spotted C-40 Crusher 16046 | -5/Waste | Discovered new exit (range 18) 16057 | -5/Waste | Crushed by Compactor (1 part destroyed) 16075 | -5/Waste | Identified exit to Factory 16077 | -5/Waste | Entered Factory 16088 | -5/Factory | Lost 3 parts (1p2u) 16375 | -5/Factory | Build established: Scavenger-Mutant 16441 | -5/Factory | Discovered new exit (range 12) 16497 | -5/Factory | Identified exit to Factory 16736 | -5/Factory | Core integrity fell below 50% 17034 | -5/Factory | Loaded intel: 8 recycling unit locations 17200 | -5/Factory | Discovered exit to Factory (range 15) 17222 | -5/Factory | Discovered exit to Upper Caves (range 6) 17295 | -5/Factory | Build established: Scout 17303 | -5/Factory | System corruption reached 30% 17398 | -5/Factory | Destroyed 8 combat bots 17439 | -5/Factory | Spotted B-75 Beast 17460 | -5/Factory | Lost 6 parts (1p2n2u1w) 17746 | -5/Factory | Scrapoids reinforcements arrived? 17765 | -5/Factory | Entered Upper Caves 17765 | -5/Upper Caves | Accompanied by 5 allies 17766 | -5/Upper Caves | Identified exit to Upper Caves 17773 | -5/Upper Caves | Learned location of Armory (-4) 17857 | -5/Upper Caves | Learned Factory terminal intel 17906 | -5/Upper Caves | Learned location of 1 exit from Factory 17938 | -5/Upper Caves | Entered an active Warlord outpost 17939 | -5/Upper Caves | A Commander dispatched an escort 17947 | -5/Upper Caves | Learned Research trap positions 17947 | -5/Upper Caves | Learned Extension trap positions 17947 | -5/Upper Caves | Learned Factory garrison access intel 17947 | -5/Upper Caves | Learned Armory garrison access intel 18005 | -5/Upper Caves | Found Unknown Device 18005 | -5/Upper Caves | Identified Scrap Suit 18023 | -5/Upper Caves | Lost 3 allies 18046 | -5/Upper Caves | Entered another Upper Caves area 18046 | -5/Upper Caves | Accompanied by 1 ally 18046 | -5/Upper Caves | Discovered exit to Factory (range 17) 18047 | -5/Upper Caves | Commander's escort returned to base 18059 | -5/Upper Caves | Identified exit to Warlord 18083 | -5/Upper Caves | Learned Factory garrison access intel 18083 | -5/Upper Caves | Learned Extension stockpile data 18155 | -5/Upper Caves | Learned Factory stockpile data 18190 | -5/Upper Caves | Encountered a Warlord checkpoint 18216 | -5/Upper Caves | Entered Warlord 18219 | -5/Warlord | Core integrity fell below 20% 18262 | -5/Warlord | System corruption cleaned by Quarantine Array 18332 | -5/Warlord | Rebuked by Warlord 18341 | -5/Warlord | Found Prototype Special Weapon 18341 | -5/Warlord | Identified RU-N14's Throwing Claymores v3 18344 | -5/Warlord | Found RU-N14's Throwing Claymores v3 18357 | -5/Warlord | Warlord's base attacked by MAIN.C 18358 | -5/Warlord | Found Prototype Device 18358 | -5/Warlord | Identified Minesniffer Drone Bay 18381 | -5/Warlord | Found Prototype Energy Gun 18381 | -5/Warlord | Identified Vortex Shotgun 18384 | -5/Warlord | Found Vortex Shotgun 18472 | -5/Warlord | Spotted B-86 Titan 18472 | -5/Warlord | Spotted B-75 Beast 18483 | -5/Warlord | Destroyed B-86 Titan 18510 | -5/Warlord | Discovered new exit (range 15) 18550 | -5/Warlord | Identified exit to Proximity Caves 18558 | -5/Warlord | Spotted B-75 Beast 18567 | -5/Warlord | Entered Proximity Caves 18567 | -4/Proximity Caves | Accompanied by 1 ally 18567 | -4/Proximity Caves | Spotted B-86 Titan 18603 | -4/Proximity Caves | Lost 3 allies 18752 | -4/Proximity Caves | Entered Factory 18752 | -4/Factory | Evolved 2 slots: Propulsion x2 18753 | -4/Factory | Identified exit to Research 18753 | -4/Factory | Identified exit to Armory 18756 | -4/Factory | Loaded intel: 26 terminal locations 18757 | -4/Factory | Loaded intel: 4 garrison access locations 18781 | -4/Factory | Found Prototype Processor 18781 | -4/Factory | Identified Exp. Signal Interpreter 18786 | -4/Factory | Discovered exit to Research (range 7) 18813 | -4/Factory | Found Prototype Device 18813 | -4/Factory | Identified Exp. ECM Suite 18827 | -4/Factory | Loaded intel: 8 recycling unit locations 18921 | -4/Factory | Repaired Broken Adv. Powered Armor 19002 | -4/Factory | Spotted B-86 Titan 19044 | -4/Factory | Lost 3 parts (1p1u1w) 19081 | -4/Factory | Discovered new exit (range 16) 19097 | -4/Factory | Identified exit to Upper Caves 19218 | -4/Factory | Fabricated Q-thruster? 19312 | -4/Factory | Sucked down chute 19312 | -4/Factory | Entered Waste 19314 | -4/Waste | Spotted C-40 Crusher 19317 | -4/Waste | Spotted C-40 Crusher 19320 | -4/Waste | Spotted C-40 Crusher 19320 | -4/Waste | Spotted C-40 Crusher 19322 | -4/Waste | Spotted C-40 Crusher 19324 | -4/Waste | Spotted C-40 Crusher 19327 | -4/Waste | EMP discharged 19328 | -4/Waste | Discovered new exit (range 24) 19342 | -4/Waste | Met Warlord forces unprepared to attack 19358 | -4/Waste | Allies destroyed C-40 Crusher 19369 | -4/Waste | Identified exit to Factory 19397 | -4/Waste | Lost 3 allies 19410 | -4/Waste | Entered Factory 19410 | -4/Factory | Accompanied by 16 allies 19411 | -4/Factory | Loaded intel: 4 garrison access locations 19462 | -4/Factory | Loaded intel: 8 recycling unit locations 19466 | -4/Factory | Discovered exit to Research (range 24) 19489 | -4/Factory | Discovered exit to Research (range 17) 19539 | -4/Factory | Lost 6 allies 19703 | -4/Factory | Central database locked down 19809 | -4/Factory | Found Prototype Processor 19842 | -4/Factory | Spotted B-86 Titan 19900 | -4/Factory | Repaired Broken Cmb. Linear Gravjet 19995 | -4/Factory | Repaired Broken Adv. Weapon Cycler 20160 | -4/Factory | Fabricated Cmb. Linear Gravjet (x2) 20206 | -4/Factory | Fabricated Cmb. Linear Gravjet (x2) 20243 | -4/Factory | Found Mni. Smartbomb Launcher 20573 | -4/Factory | Scraphulk reinforcements arrived? 20623 | -4/Factory | Entered Armory 20691 | -4/Armory | Build established: Machinist-Scout 20970 | -4/Armory | Fabricated Cmb. Linear Gravjet (x2) 21045 | -4/Armory | System corruption reached 10% 21100 | -4/Armory | Discovered exit to Research (range 23) 21123 | -4/Armory | First assault squad dispatched 21130 | -4/Armory | Found Fusion Bomb Launcher 21132 | -4/Armory | Found Fusion Bomb Launcher 21215 | -4/Armory | Scrapoids reinforcements arrived? 21222 | -4/Armory | Scraphulk reinforcements arrived? 21305 | -4/Armory | Discovered exit to Research (range 19) 21407 | -4/Armory | Discovered new exit (range 18) 21658 | -4/Armory | Entered Lab 21658 | -4/Lab | Accompanied by 8 allies 21658 | -4/Lab | Discovered exit to Research (range 9) 21664 | -4/Lab | Unable to decrypt terminal 21698 | -4/Lab | Entered Research 21698 | -3/Research | Accompanied by 8 allies 21698 | -3/Research | Evolved 2 slots: Propulsion x1, Utility x1 21699 | -3/Research | Identified exit to Quarantine 21700 | -3/Research | Identified exit to Research 21701 | -3/Research | Loaded intel: 87 trap records 21898 | -3/Research | Revision forces began assault on 0b10 21927 | -3/Research | Identified Exp. Targeting Computer 22013 | -3/Research | Found Adv. Micro-nuke Launcher 22087 | -3/Research | Lost 5 allies 22098 | -3/Research | Met up with Revision 17++ 22278 | -3/Research | Spotted B-90 Cyclops 22283 | -3/Research | Entered Quarantine 22303 | -3/Quarantine | Found Alien Energy Cannon 22303 | -3/Quarantine | Identified Core Cannon 22460 | -3/Quarantine | Found Alien Artifact 22533 | -3/Quarantine | First assault squad dispatched 22563 | -3/Quarantine | Entered Research 22563 | -2/Research | Evolved 2 slots: Propulsion x1, Weapon x1 22603 | -2/Research | Discovered new exit (range 24) 22625 | -2/Research | Scrapoid reinforcements arrived 22685 | -2/Research | Found Scrap Suit 22703 | -2/Research | Lost 3 parts (3u) 22777 | -2/Research | Garrison activated, responded to threat 22839 | -2/Research | Spotted B-90 Cyclops 22849 | -2/Research | Destroyed B-90 Cyclops 22922 | -2/Research | Found Prototype Device 22922 | -2/Research | Identified Exp. Thermal Defense Suite 22931 | -2/Research | Found Prototype Device 22931 | -2/Research | Identified Adv. EM Shield 23004 | -2/Research | Found Scrap Suit 23063 | -2/Research | First assault squad dispatched 23068 | -2/Research | Destroyed 14 combat bots 23220 | -2/Research | Build established: Scavenger-Tank 23272 | -2/Research | Found Prototype Launcher 23272 | -2/Research | Identified Enh. Gamma Bomb Array 23333 | -2/Research | Discovered new exit (range 14) 23363 | -2/Research | Found Prototype Launcher 23363 | -2/Research | Identified Point Singularity Launcher 23400 | -2/Research | Entered Testing 23424 | -2/Testing | Found Prototype Energy Cannon 23424 | -2/Testing | Identified Potential Cannon 23427 | -2/Testing | Found Prototype Energy Cannon 23427 | -2/Testing | Identified Imp. Potential Cannon 23489 | -2/Testing | Found Prototype Energy Cannon 23489 | -2/Testing | Identified Null Cannon 23566 | -2/Testing | Build established: Scavenger-Skirmisher 23575 | -2/Testing | Discovered new exit (range 8) 23590 | -2/Testing | Identified exit to Access 23607 | -2/Testing | Found Prototype Device 23607 | -2/Testing | Identified Exp. Hardlight Generator 23730 | -2/Testing | Found Prototype Device 23730 | -2/Testing | Identified Exp. EM Disruption Field 23868 | -2/Testing | System corruption reached 10% 23906 | -2/Testing | Protovariant out of control (PG-4XO1CT2G1S) 23906 | -2/Testing | Unleashed a protovariant (PG-4XO1CT2G1S) 23908 | -2/Testing | Build established: Scavenger-Tank 23958 | -2/Testing | Spotted Striker 23960 | -2/Testing | Spotted Striker 24274 | -2/Testing | Found Prototype Device 24274 | -2/Testing | Identified Exp. Actuator Array 24280 | -2/Testing | Found Prototype Device 24280 | -2/Testing | Identified Exp. Transmission Jammer 24375 | -2/Testing | Found Prototype Processor 24375 | -2/Testing | Identified Exp. Core Analyzer 24583 | -2/Testing | Found Prototype Device 24661 | -2/Testing | Spotted Fortress 24748 | -2/Testing | Discovered new exit (range 6) 24748 | -2/Testing | Discovered new exit (range 6) 24755 | -2/Testing | Entered Protoforge 24778 | -2/Protoforge | Superfortress began startup sequence 24780 | -2/Protoforge | Spotted Hotshot 24784 | -2/Protoforge | Spotted Hotshot 24784 | -2/Protoforge | Destroyed Hotshot 24796 | -2/Protoforge | Destroyed Hotshot 24803 | -2/Protoforge | Spotted Hotshot 24805 | -2/Protoforge | Spotted Hotshot 24823 | -2/Protoforge | Destroyed Hotshot 24859 | -2/Protoforge | Destroyed Hotshot 25005 | -2/Protoforge | First assault squad dispatched 25248 | -2/Protoforge | Spotted B-90 Cyclops 25279 | -2/Protoforge | Destroyed B-90 Cyclops 25334 | -2/Protoforge | Discovered exit to Access (range 9) 25768 | -2/Protoforge | Entered Access 25768 | -1/Access | Evolved 2 slots: Utility x1, Weapon x1 25924 | -1/Access | Destroyed 8 combat bots 26010 | -1/Access | Identified Exp. Weapon Cycler 26063 | -1/Access | Garrison activated, responded to threat 26153 | -1/Access | Destroyed 10 combat bots 26208 | -1/Access | Build established: Scavenger-Gunner 26331 | -1/Access | Garrison activated, responded to threat 26393 | -1/Access | Lost 4 parts (2u2w) 26396 | -1/Access | Destroyed 8 combat bots 26502 | -1/Access | Lost 4 parts (1p1n2w) 26520 | -1/Access | Destroyed 9 combat bots 26566 | -1/Access | Scrapoid reinforcements arrived 26624 | -1/Access | Build established: Scavenger-Tank 26639 | -1/Access | Spotted B-99 Colossus 26668 | -1/Access | Destroyed B-99 Colossus 26676 | -1/Access | Found Scrap Suit 26697 | -1/Access | Lost 3 allies 26699 | -1/Access | Found Prototype Ballistic Gun 26699 | -1/Access | Identified Multirail 26702 | -1/Access | Found Multirail 26835 | -1/Access | Discovered new exit (range 3) 26894 | -1/Access | Identified Subatomic Replicator 26894 | -1/Access | Used Subatomic Replicator to replicate Multirail 26963 | -1/Access | Build established: Scavenger-Gunner 27018 | -1/Access | First assault squad dispatched 27299 | -1/Access | Build established: Scavenger-Tank 27396 | -1/Access | System corruption reached 10% 27644 | -1/Access | Build established: Scavenger-Gunner 28018 | -1/Access | High security lockdown imminent 28098 | -1/Access | High security lockdown engaged 28162 | -1/Access | Destroyed 8 combat bots 28294 | -1/Access | Destroyed 10 combat bots 28338 | -1/Access | Scanned by Researcher 28339 | -1/Access | Spotted Investigator 28341 | -1/Access | Destroyed Investigator 28344 | -1/Access | Spotted Executioner 28346 | -1/Access | Destroyed Executioner 28373 | -1/Access | Destroyed 12 combat bots 28477 | -1/Access | Spotted Executioner 28477 | -1/Access | Spotted Executioner 28477 | -1/Access | Spotted Striker 28479 | -1/Access | Destroyed Striker 28480 | -1/Access | Sterilization system engaged 28480 | -1/Access | Spotted Striker 28487 | -1/Access | Destroyed Executioner 28487 | -1/Access | Destroyed Executioner 28495 | -1/Access | Destroyed Striker 28502 | -1/Access | System corruption reached 30% 28516 | -1/Access | Destroyed 16 combat bots 28517 | -1/Access | Lost 3 parts (1n2w) 28577 | -1/Access | Spotted Executioner 28577 | -1/Access | Spotted Striker 28586 | -1/Access | Destroyed Striker 28587 | -1/Access | Destroyed Executioner 28644 | -1/Access | Lost 3 parts (2u1w) 28704 | *** | Escaped! Last Messages --------------- Lgt. Angular Momentum Engine. 28654_ G-73 Enforcer system terminally corrupted. 28654_ Adv. Heat Sink fried. 28656_ Acquired Adv. Heat Sink. 28660_ System corrupted: Component data lost. 28663_ The unstable cave ceiling collapses. 28668_ Acquired Adv. Heat Sink. 28669_ Acquired 157 matter. 28673_ Ovr. Huge Scrapsphere suddenly begins malfunctioning. 28675_ Ovr. Huge Scrapsphere recovered from malfunction. 28675_ System corrupted: Heat flow error (+144). 28676_ The unstable cave ceiling collapses. 28677_ Ovr. Huge Scrapsphere suddenly begins malfunctioning. 28682_ Acquired 54 matter. 28690_ System corrupted: Energy discharge (-120). Map ----- +----------------------------------------------------+ | ?????????????????????????????????????????????????? | | ???????##???????###??????????????????????????????? | | ???????# ##???###!##########?????????????????????? | | ???????? ##### #?????????????????????? | | ???????## # ## ** #?????????????????????? | | ######## = # """" #?????????????????????? | | ##| # # ""R"" #?????????????????????? | | !=! # ! # "" "" #?????????????????????? | | = [=== [#! #?????????????????????? | | != =+[ #?????????????????????? | | [=% ## % #! !!! #?????????????????????? | | =! ! #% !!! #?????????????????????? | | # ## !! #?????????????????????? | | ## #?????????????????????? | | # # ## = #?????????????????????? | | # ^ ! ## ###############?????????????????????? | | # ^ # #=!#????????????????????????????????? | | # ^ # #!#????????????????????????????????? | | #! =#????????????????????????????????? | | # % #####"######??????????????????????? | | ######### #%/ " """" ???????????????????????? | | ???????# # !| !"""" ????????????????????????? | | ???????## %= = ! " """"""????????????????????? | | ????????# = * " " "????????????????????? | | ????????# ]=/ " "" "????????????????????? | | ????????#= == " @" "????????????????????? | | ????????# [!%% " "????????????????????? | | ????????# " = % " """"""????????????????????? | | ????????##"[= = " ????????????????????????? | | ?????????##[/[*= " ???????????????????????? | | ?????????##% #"#####"######??????????????????????? | | ?????????##%"## #????????????????????????????????? | | ###########*/###########?????????????????????????? | | #*=# #?????????????????????????? | | [=#[ # #?????????????????????????? | | !/+! + ![#?????????????????????????? | | !=# # ! #?????????????????????????? | | # =# #?????????????????????????? | | ?#% # #?????????????????????????? | | ?# %# [ #?????????????????????????? | | ########?##% # #?????????????????????????? | | ########### ###########?????????????????????????? | | #!% #???????????????????????????????????? | | ? ##/=#???????????????????????????????????? | | " ## #???????????????????????????????????? | | """ ##%!#???????????????????????????????????? | | """ ## !#???????????????????????????????????? | | ? " ##%|#???????????????????????????????????? | | ??? ## #???????????????????????????????????? | | ????? ## =#???????????????????????????????????? | +----------------------------------------------------+ Best States ------------- Heat Dissipation 162 Coolant Potential 100 Energy Generation 45 Energy Capacity 790 Matter Stores 521 Matter Capacity 800 Sight Range 23 Robot Scan Range 18 Terrain Scan Range 24 Terrain Scan Density 1210 ECM Strength 2 Cloak Strength 2 Additional Mass Support 16 Base Temperature (-) 200 Corruption Block 15 Armor Coverage 1200 Resistance: KI 30 Resistance: TH 30 Resistance: EM 20 Weapon Shielding 90 Point Defense Rating 240 Weapon Cycling 30 Phase Shifting 15 Evasion (%) 66 Targeting Accuracy 8 Melee Accuracy 8 Target Analysis 8 Core Analysis 8 Recoil Reduction 6 Matter Filtering 50 Particle Charging 20 Kinecelleration 40 Offensive Hacking 24 Authchip Count 2 Item Schematics ----------------- Adv. Powered Armor | -5/Factory | Scanalyzed Exp. Cesium-ion Thruster | -5/Factory | Scanalyzed Cmb. Linear Gravjet | -4/Factory | Scanalyzed Adv. Weapon Cycler | -4/Factory | Scanalyzed Exp. Hacking Suite | -2/Testing | Archive Com. Particle Reactor | -2/Testing | Archive Cld. Linear Gravjet | -2/Testing | Archive Cld. Antimatter Reactor | -2/Testing | Archive Ragnarok Missile Launcher | -2/Testing | Archive Nanosword | -2/Testing | Archive Imp. Quantum Reactor | -2/Testing | Archive Graviton Cannon | -2/Testing | Archive Hds. Centrium Leg | -2/Testing | Archive Lrn. Phase Cannon | -2/Testing | Archive Robot Schematics ------------------ Y-72 Warden | -2/Testing | Archive Fabricated ------------ Q-thruster | x2 | -4/Factory | Preloaded Cmb. Linear Gravjet | x2 | -4/Factory | Authchip Cmb. Linear Gravjet | x2 | -4/Factory | Authchip Cmb. Linear Gravjet | x2 | -4/Armory | Preloaded Repaired ---------- Centrium Heavy Treads | 35% | -5/Factory Adv. Powered Armor | 61% | -4/Factory | Broken Cmb. Linear Gravjet | 5% | -4/Factory | Broken Adv. Weapon Cycler | 10% | -4/Factory | Broken Alien Tech Used ----------------- Core Cannon Subatomic Replicator Achievements -------------- None Challenges ------------ None Game ------ Seed HugeSmallScanner Manual? 0 Play Time 06:14:17 Cumulative 472.0 hours Start 2025.06.29 @ 19:20:19 End 2025.06.30 @ 22:51:49 Sessions 5 Manual Loads 0 Difficulty Rogue Special Mode None Game No. 106 Rogue 106 Adventurer 0 Explorer 0 Win Type 0 Total 35 Types 17/1/8/1/1/0/3/2/1/1 Lore% 90 Gallery% 79 Achievement% 81 Wizard Run 0 Options --------- Layout 1 ASCII 0 Keyboard 0 Movement Mouse Keybinds 0 Fullscreen 1 Font 24/Smallcaps Map View 50x35 Zoom Use 0% Tactical HUD 1 Map Filters NONE Filters NONE Steam 1 RUN: 2edc510f-854b-4c27-be20-0dca49a36edc